Cogmind - Beta 12 X1 @@@ ROGUE MODE // 2022.08.08 @ 22:42:41 Player: Runia Result: Escaped! Performance ------------- Evolutions (9) 4500 Regions Visited (35) 7000 Robots Destroyed (263) 1315 Value Destroyed (16872) 16872 Prototype IDs (43) 860 Alien Tech Used (0) 0 Bonus (18260) 18260 TOTAL SCORE: 48807 Bonus ------- High Alert Combat Kills 1809 Follower Combat Kills 7975 Entered Garrisons 2200 Used RIF Installer 6000 Aligned with FarCom 300 Built Enhanced Grunts 300 A7 Reached Mainframe 300 Win 3000 Friendly Fire -3624 Cogmind --------- Core Integrity 1483/1600 Matter 279/300 Energy 149/170 System Corruption 1% Temperature Cool (9) Movement Treading (145) Location To Epsilon Eridani Parts ------- > --- POWER (2) -------- Compact Particle Reactor Compact Particle Reactor > --- PROPULSION (6) --- Biometal Heavy Treads Biometal Heavy Treads Biometal Heavy Treads > --- UTILITY (14) ----- Advanced Cooling System Advanced Cooling System Huge Storage Unit Advanced Targeting Computer Improved Particle Accelerator Advanced Weapon Cycler Advanced Transmission Jammer Advanced Powered Armor Advanced Powered Armor Relay Coupler [NC] (20) Relay Coupler [C] (42) Relay Coupler [Demolisher] (18) Relay Coupler [Hunter] (28) Relay Coupler [Heavy] (5) > --- WEAPON (3) ------- Enhanced Nova Cannon Improved Remote Datajack Enhanced Force Lance > --- INVENTORY (25) --- Particle Reactor Particle Reactor Reinforced Quantum Reactor Reinforced Quantum Reactor Biometal Heavy Treads Advanced Energy Well (500) Matter Compressor (250) Triangulator Advanced Powered Armor Advanced Powered Armor Advanced Powered Armor Relay Coupler [NC] (39) Relay Coupler [Cutter] (41) Relay Coupler [Specialist] (27) Relay Coupler [Heavy] (21) Enhanced Nova Cannon Enhanced Nova Cannon Enhanced Nova Cannon Micro-nuke Launcher Micro-nuke Launcher Advanced Remote Datajack Peak State ------------ > --- POWER ------------ Compact Particle Reactor Compact Particle Reactor > --- PROPULSION ------- Biometal Heavy Treads Biometal Heavy Treads Biometal Heavy Treads > --- UTILITY ---------- Advanced Cooling System Advanced Cooling System Huge Storage Unit Advanced Targeting Computer Improved Particle Accelerator Advanced Weapon Cycler Advanced Transmission Jammer Advanced Powered Armor Advanced Powered Armor Relay Coupler [NC] Relay Coupler [C] Relay Coupler [Demolisher] Relay Coupler [Hunter] Relay Coupler [Heavy] > --- WEAPON ----------- Enhanced Nova Cannon Improved Remote Datajack Enhanced Force Lance > --- INVENTORY -------- Particle Reactor Particle Reactor Reinforced Quantum Reactor Reinforced Quantum Reactor Biometal Heavy Treads Advanced Energy Well Matter Compressor Triangulator Advanced Powered Armor Advanced Powered Armor Advanced Powered Armor Advanced Powered Armor Relay Coupler [NC] Relay Coupler [Cutter] Relay Coupler [Specialist] Relay Coupler [Heavy] Enhanced Nova Cannon Enhanced Nova Cannon Enhanced Nova Cannon Micro-nuke Launcher Micro-nuke Launcher Advanced Remote Datajack [Rating: 192] Favorites ----------- Power Quantum Reactor Engine Heavy Ion Engine Power Core Fission Core Reactor Quantum Reactor Propulsion Biometal Heavy Treads Treads Biometal Heavy Treads Leg Aluminum Leg Wheel Armored Huge Wheel Hover Unit Aerolev Unit Utility Relay Coupler [NC] Device Advanced Cooling System Storage Huge Storage Unit Processor 0b10 Alert Chip Hackware Relay Coupler [NC] Protection Advanced Powered Armor Weapon Improved Remote Datajack Energy Gun Beam Rifle Energy Cannon Enhanced Nova Cannon Ballistic Gun Heavy Assault Rifle Launcher Precision Grenade Launcher Special Weapon Improved Remote Datajack Impact Weapon Heavy Mace Slashing Weapon Makeshift Sword Piercing Weapon Enhanced Force Lance Special Melee Weapon Improved Datajack Build | -11 -10 -10 -9 -9 -9 -8 -8 -8 -8 -8 -7 -7 -7 -7 -7 -7 -6 -6 -5 -5 -5 -5 -4 -4 -4 -4 -4 -4 -3 -3 -2 -2 -1 -1 -1 ------- Run | Scr Mat Min Mat Min Exi Min Mat Gar Mat Gar Fac Was Fac Gar Fac Gar Fac Gar Fac Gar Fac Gar Fac Ext Cet Arc Hub Gar Res Gar Res Gar Acc Gar Acc Slots Evolved 18 | . . . 2 . . . 2 . . . 2 . . . . . 2 . 2 . . . 2 . . . . . 2 . 2 . 2 . . Power 1 | . . . . . . . . . . . . . . . . . . . . . . . . . . . . . 1 . . . . . . Propulsion 4 | . . . . . . . 1 . . . . . . . . . 1 . . . . . . . . . . . . . . . 2 . . Utility 12 | . . . 1 . . . 1 . . . 2 . . . . . 1 . 2 . . . 2 . . . . . 1 . 2 . . . . Weapon 1 | . . . 1 . . . . . . . . . . . . . . . . . . . . . . . . . . . . . . . . Parts Attached 407 | 1 4 3 36 1 . 1 10 27 23 8 9 10 7 21 3 25 6 20 24 31 4 10 9 4 3 1 1 27 7 23 2 16 4 9 17 Power 25 | . . . 3 . . . . 1 2 . 1 1 . . . 2 . 1 1 3 . . . . . . . 1 1 1 . 4 . . 3 Engine 7 | . . . 3 . . . . 1 2 . 1 . . . . . . . . . . . . . . . . . . . . . . . . Core 2 | . . . . . . . . . . . . . . . . . . 1 1 . . . . . . . . . . . . . . . . Reactor 16 | . . . . . . . . . . . . 1 . . . 2 . . . 3 . . . . . . . 1 1 1 . 4 . . 3 Propulsion 48 | 1 . . 8 . . . 3 4 5 2 . 1 1 1 . 2 1 2 5 3 2 . . . 2 . . 2 . . . 2 1 . . Treads 40 | . . . 3 . . . 3 4 5 2 . 1 1 1 . 1 1 2 4 3 2 . . . 2 . . 2 . . . 2 1 . . Leg 5 | 1 . . 4 . . . . . . . . . . . . . . . . . . . . . . . . . . . . . . . . Wheel 2 | . . . . . . . . . . . . . . . . 1 . . 1 . . . . . . . . . . . . . . . . Hover 1 | . . . 1 . . . . . . . . . . . . . . . . . . . . . . . . . . . . . . . . Flight . | . . . . . . . . . . . . . . . . . . . . . . . . . . . . . . . . . . . . Utility 197 | . 2 3 8 1 . 1 2 4 4 4 3 5 2 9 1 17 4 10 11 11 2 7 5 3 1 1 1 19 4 18 2 9 2 8 13 Device 64 | . 1 3 6 . . . 1 . 1 . . 2 1 2 . 2 1 1 5 . . 2 4 3 . 1 1 12 1 6 . 2 . 1 5 Storage 7 | . . . 1 . . 1 . . . . . . . . 1 . 1 . 1 . 1 . . . . . . 1 . . . . . . . Processor 5 | . . . 1 . . . . . . . . . . . . . . . . 1 . 1 . . . . . . 1 . . . . . 1 Hackware 86 | . . . . . . . . 2 . 4 1 2 . 5 . 12 1 8 2 9 1 4 . . 1 . . 5 2 9 1 6 2 6 3 Protection 35 | . 1 . . 1 . . 1 2 3 . 2 1 1 2 . 3 1 1 3 1 . . 1 . . . . 1 . 3 1 1 . 1 4 Artifact . | . . . . . . . . . . . . . . . . . . . . . . . . . . . . . . . . . . . . Weapon 137 | . 2 . 17 . . . 5 18 12 2 5 3 4 11 2 4 1 7 7 14 . 3 4 1 . . . 5 2 4 . 1 1 1 1 Energy Gun 10 | . 1 . 5 . . . 1 . . . . . . . . . 1 . 2 . . . . . . . . . . . . . . . . Energy Cannon 21 | . . . . . . . . . 2 . . 1 1 1 . 1 . 2 1 3 . . 4 . . . . 3 . 1 . . 1 . . Ballistic Gun 27 | . . . 7 . . . 2 8 5 1 2 . . . . 1 . 1 . . . . . . . . . . . . . . . . . Ballistic Cannon . | . . . . . . . . . . . . . . . . . . . . . . . . . . . . . . . . . . . . Launcher 25 | . 1 . 5 . . . . 4 2 . 2 . 1 2 . . . 1 1 4 . . . . . . . 1 . 1 . . . . . Special Weapon 27 | . . . . . . . . . . 1 1 2 1 4 1 1 . 2 1 4 . 2 . 1 . . . 1 1 1 . 1 . 1 1 Impact Weapon 12 | . . . . . . . . . 3 . . . 1 4 1 1 . 1 . 1 . . . . . . . . . . . . . . . Slashing Weapon 7 | . . . . . . . 2 5 . . . . . . . . . . . . . . . . . . . . . . . . . . . Piercing Weapon 7 | . . . . . . . . . . . . . . . . . . . 2 2 . 1 . . . . . . 1 1 . . . . . Special Melee Weapon 1 | . . . . . . . . 1 . . . . . . . . . . . . . . . . . . . . . . . . . . . Unidentified Prototypes 10 | . . 1 2 . . . . . . . 1 1 . . . . 1 . . . . . . . 1 . . 2 . . . 1 . . . Parts Lost 44 | . . . 2 . . . 2 . 5 1 . . . . . 1 . 2 11 4 . . 2 1 . . . 3 2 5 . 1 . . 2 Power 3 | . . . . . . . . . . . . . . . . . . . 1 1 . . . . . . . . . 1 . . . . . Propulsion 2 | . . . . . . . . . 1 . . . . . . . . . 1 . . . . . . . . . . . . . . . . Utility 26 | . . . 1 . . . . . 3 1 . . . . . . . 2 7 2 . . . 1 . . . 2 1 3 . 1 . . 2 Weapon 13 | . . . 1 . . . 2 . 1 . . . . . . 1 . . 2 1 . . 2 . . . . 1 1 1 . . . . . Highest Loss Streak 4 | . . . 1 . . . 2 . 2 1 . . . . . 1 . 1 4 1 . . 1 1 . . . 3 1 2 . 1 . . 1 To Critical Strikes 1 | . . . . . . . . . . . . . . . . . . . . 1 . . . . . . . . . . . . . . . Average Slot Usage (%) 87 | . 89 100 98 100 100 100 99 98 96 99 95 97 90 89 92 89 85 85 71 84 87 87 80 77 78 73 77 77 77 88 87 89 84 87 87 Engine 2 | . 14 14 11 11 11 11 9 9 8 9 7 5 . . . . . . . . . . . . . . . . . . . . . . . Reactor 4 | . . . . . . . . . . . . 1 7 7 7 7 6 3 . 3 5 5 5 5 5 5 5 5 9 8 8 7 8 8 8 Treads 13 | . . . 4 22 22 22 27 27 26 27 23 20 15 15 15 13 13 12 7 11 10 11 10 10 10 10 10 10 9 9 8 8 8 12 12 Leg 1 | . 28 28 17 . . . . . . . . . . . . . . . . . . . . . . . . . . . . . . . . Device 7 | . 3 14 9 5 . . 9 2 6 . . 1 7 5 7 3 5 . 5 5 . 4 11 14 16 10 14 17 15 15 13 13 12 9 12 Storage 6 | . 14 14 11 11 11 11 9 9 9 9 7 7 7 7 7 7 6 6 5 5 5 5 5 5 5 5 5 5 4 4 4 4 4 4 4 Processor 2 | . . . 10 11 11 11 9 9 1 . . . . . . . . . . 4 5 . . . . . . . 4 4 4 4 4 4 2 Hackware 21 | . . . . . . . . 1 9 22 26 30 21 22 23 28 26 32 22 30 41 40 29 21 19 21 21 18 18 23 26 28 28 29 28 Protection 5 | . . . . 5 11 11 9 12 8 3 7 5 6 7 7 4 6 5 7 3 . . 2 5 5 5 5 4 1 6 9 8 8 8 7 Energy Gun 1 | . 14 14 13 11 11 11 8 . . . . . . . . . 4 2 . . . . . . . . . . . . . . . . . Energy Cannon 4 | . . . . . . . . . 5 . . 3 14 14 15 5 . 1 3 6 5 5 4 5 5 5 5 5 5 4 4 4 4 4 4 Ballistic Gun 4 | . 14 14 18 22 22 22 14 18 18 11 7 3 . . . . 1 2 . . . . . . . . . . . . . . . . . Special Weapon 3 | . . . . . . . . . . 6 6 6 1 2 3 6 6 5 2 2 5 5 4 5 5 5 5 5 4 4 4 4 4 4 4 Impact Weapon 1 | . . . . . . . . . 1 9 7 7 5 4 3 6 6 6 3 2 . . . . . . . . . . . . . . . Piercing Weapon 1 | . . . . . . . . . . . . . . . . . . . 1 1 5 5 5 5 5 5 5 3 1 1 4 4 4 4 4 Naked Turns . | . . . . . . . . . . . . . . . . . . . . . . . . . . . . . . . . . . . . Heaviest Build 190 | 14 15 15 44 44 40 60 66 67 75 71 71 75 85 85 83 83 115 114 122 137 120 126 146 150 150 148 148 155 175 175 190 190 167 167 178 Greatest Support 225 | 20 20 20 40 40 40 40 66 66 65 63 60 90 93 98 98 98 140 150 150 150 150 150 150 150 160 160 160 160 150 150 150 150 225 225 225 Greatest Overweight (x) 48 | . . . 1 1 . 1 1 1 1 1 1 1 . . . 3 . 1 4 . 1 . . . . 48 . 1 1 1 1 1 1 . . Average Overweight (x) . | . . . . . . . . . . . 1 . . . . . . . 2 . . . . . . 14 . . . . 1 1 . . . Largest Inventory Capacity 25 | 8 8 8 15 15 15 20 20 20 20 20 20 20 20 20 20 20 25 25 25 25 25 25 25 25 25 25 25 25 25 25 25 25 25 25 25 Average Capacity 22 | 8 8 8 11 15 15 19 20 20 20 20 20 20 20 20 20 20 24 25 25 25 25 25 25 25 25 25 25 25 25 25 25 25 25 25 25 Most Carried 25 | 7 6 8 15 15 15 16 20 20 20 20 20 20 20 20 20 20 25 25 24 25 25 25 25 25 24 25 25 25 24 25 24 25 25 25 25 Average Carried 20 | 5 4 7 10 14 14 15 17 19 19 18 19 19 19 19 20 19 22 24 21 21 23 24 23 23 24 24 24 24 21 22 23 23 23 23 24 Final Capacity 25 | 8 8 8 15 15 15 20 20 20 20 20 20 20 20 20 20 20 25 25 25 25 25 25 25 25 25 25 25 25 25 25 25 25 25 25 25 Final Carried 25 | 2 6 8 15 15 15 15 20 20 19 20 20 20 19 20 20 20 24 24 21 24 23 25 24 24 24 25 25 25 20 25 23 25 23 25 22 Class Distribution -------------------- 63% | Botlord-Mutant 19% | Bothacker-Mutant 4% | Scavenger-Gunner 3% | Scavenger-Skirmisher 3% | Mutant Dominant Class ---------------- Mutant | -10/Materials Mutant | -10/Mines Gunner | -9/Materials Scavenger-Gunner | -9/Mines Scavenger-Gunner | -9/Exiles Scavenger-Skirmisher | -8/Mines Scavenger-Skirmisher | -8/Materials Bothacker-Mutant | -8/Garrison Bothacker-Skirmisher | -8/Materials Bothacker-Mutant | -8/Garrison Bothacker-Mutant | -7/Factory Bothacker-Mutant | -7/Waste Bothacker-Mutant | -7/Factory Bothacker-Mutant | -7/Garrison Bothacker-Mutant | -7/Factory Botlord-Mutant | -7/Garrison Botlord-Mutant | -6/Factory Botlord-Mutant | -6/Garrison Botlord-Mutant | -5/Factory Botlord-Mutant | -5/Garrison Botlord-Mutant | -5/Factory Botlord-Mutant | -5/Garrison Botlord-Mutant | -4/Factory Botlord-Mutant | -4/Extension Botlord-Mutant | -4/Cetus Botlord-Mutant | -4/Archives Botlord-Mutant | -4/Hub_04(d) Botlord-Mutant | -4/Garrison Botlord-Mutant | -3/Research Botlord-Mutant | -3/Garrison Botlord-Mutant | -2/Research Botlord-Mutant | -2/Garrison Botlord-Mutant | -1/Access Botlord-Mutant | -1/Garrison Botlord-Mutant | -1/Access Resources | -11 -10 -10 -9 -9 -9 -8 -8 -8 -8 -8 -7 -7 -7 -7 -7 -7 -6 -6 -5 -5 -5 -5 -4 -4 -4 -4 -4 -4 -3 -3 -2 -2 -1 -1 -1 ----------- Run | Scr Mat Min Mat Min Exi Min Mat Gar Mat Gar Fac Was Fac Gar Fac Gar Fac Gar Fac Gar Fac Gar Fac Ext Cet Arc Hub Gar Res Gar Res Gar Acc Gar Acc Matter Collected 10770 | 199 98 19 785 10 . 28 37 512 608 267 91 278 41 446 . 548 80 800 603 1035 91 445 136 229 58 81 17 385 32 1038 24 335 99 483 832 Remotely 159 | . . . . . . . . . . . . . . 159 . . . . . . . . . . . . . . . . . . . . . Salvage Created 12088 | . 115 . 1693 . . 41 140 448 706 113 155 865 222 188 . 461 271 934 391 829 61 443 433 382 . 242 . 1179 167 845 116 124 . 296 228 Parts 641 | . 17 . 113 . . 6 17 30 35 . 18 23 15 8 . 13 5 43 27 35 4 34 22 14 . 17 . 49 12 42 5 2 . 25 10 Haulers Intercepted 3 | . . . 2 . . . . . . . 1 . . . . . . . . . . . . . . . . . . . . . . . . Recyclers Shooed 8 | . . . 7 . . . . . . . . . . . . . . . . . . . . . . . . . 1 . . . . . . Parts Field Recycled . | . . . . . . . . . . . . . . . . . . . . . . . . . . . . . . . . . . . . Retrieved Matter . | . . . . . . . . . . . . . . . . . . . . . . . . . . . . . . . . . . . . Parts Self-Destructed . | . . . . . . . . . . . . . . . . . . . . . . . . . . . . . . . . . . . . Prevented . | . . . . . . . . . . . . . . . . . . . . . . . . . . . . . . . . . . . . Kills | -11 -10 -10 -9 -9 -9 -8 -8 -8 -8 -8 -7 -7 -7 -7 -7 -7 -6 -6 -5 -5 -5 -5 -4 -4 -4 -4 -4 -4 -3 -3 -2 -2 -1 -1 -1 ------- Run | Scr Mat Min Mat Min Exi Min Mat Gar Mat Gar Fac Was Fac Gar Fac Gar Fac Gar Fac Gar Fac Gar Fac Ext Cet Arc Hub Gar Res Gar Res Gar Acc Gar Acc Combat Hostiles Destroyed 203 | . 5 . 31 . . 3 2 13 13 3 4 3 5 4 . 10 3 12 9 19 1 6 6 5 . . . 19 4 16 . 2 . 3 2 Melee 32 | . . . . . . . . 1 1 2 1 . 1 1 . 6 . 3 5 6 1 . . 1 . . . . . 2 . 1 . . . Guns 58 | . 2 . 26 . . 3 2 8 8 . 1 . . . . . 3 5 . . . . . . . . . . . . . . . . . Cannons 60 | . . . . . . . . . 2 . . 2 1 1 . 1 . . 1 6 . 6 6 3 . . . 13 4 9 . 1 . 3 1 AOE 39 | . 3 . 5 . . . . 4 2 . 2 . 3 2 . . . 3 2 6 . . . . . . . 3 . 4 . . . . . Classes Destroyed 19 | . 3 . 6 . . . . 1 2 . . 1 . . . . . 1 1 . . 1 1 . . . . 1 . . . 1 . . . Worker 8 | . 2 . 3 . . . . . . . . . 1 . . . . . . . . . . . . . . . . . . . . . 2 Builder 12 | . . . 4 . . . 2 . 1 . 3 . 1 . . . . . . . . . . 1 . . . . . . . . . . . Tunneler 2 | . . . . . . . . . 1 . 1 . . . . . . . . . . . . . . . . . . . . . . . . Hauler 3 | . . . 2 . . . . . . . 1 . . . . . . . . . . . . . . . . . . . . . . . . Recycler 10 | . . . 6 . . . . . 2 . . . . . . . 1 . . . . . . . . . . . . . 1 . . . . Operator 10 | . . . 1 . . . . . . . . . . . . . . . . . . . . 1 . 7 . . . 1 . . . . . Watcher 6 | . . . 3 . . . . . 1 . . . 2 . . . . . . . . . . . . . . . . . . . . . . Swarmer 50 | . 3 . 8 . . 3 . 3 2 . 3 . 3 1 . . . 3 . 4 . 1 . . . . . 3 3 6 . . . 3 1 Cutter 5 | . . . . . . . . . . . . . . . . . . 3 . 2 . . . . . . . . . . . . . . . Saboteur 1 | . . . . . . . . . . . . . . . . . . . 1 . . . . . . . . . . . . . . . . Grunt 65 | . 2 . 17 . . . . 4 6 3 . . . 2 . 6 2 3 . 3 . 2 . 1 . . . 10 . 4 . . . . . Duelist 1 | . . . . . . . . . . . . . . . . . . . . . . . . . . . . . . . . 1 . . . Sentry 29 | . . . 6 . . . 2 2 4 . . . . 2 . 1 1 1 1 3 . . 1 2 . . . 1 . . . 1 . . 1 Hunter 12 | . . . . . . . . . 1 . . . . . . 1 . 1 . 4 1 . 2 . . . . 1 . 1 . . . . . Programmer 40 | . . . . . . . . 4 . . 1 . 2 . . 3 . 1 7 4 . 3 2 2 . . . 2 1 4 . . . 3 1 Heavy 1 | . . . . . . . . . . . . . . . . . . . . . . . 1 . . . . . . . . . . . . Behemoth 3 | . . . . . . . . . . . . . . . . . . . . . . . . . . . . 2 . 1 . . . . . Compactor 3 | . . . . . . . . . . . . 3 . . . . . . . . . . . . . . . . . . . . . . . Infiltrator 2 | . . . . . . . . . . . . . . . . . . . . . . 2 . . . . . . . . . . . . . Best Kill Streak 9 | . 3 . 9 . . 2 2 5 5 2 4 1 3 2 . 2 2 5 2 4 1 2 2 2 . 2 . 4 3 3 1 1 . 2 2 Combat Bots Only 5 | . 3 . 5 . . 2 2 5 3 2 3 1 3 2 . 2 2 5 2 4 1 2 2 2 . . . 4 3 3 . 1 . 2 1 Max Kills in Single Turn 3 | . 2 . 2 . . 1 1 2 2 1 1 1 2 2 . 1 1 2 2 2 1 1 1 1 . 1 . 3 1 1 1 1 . 1 1 Gunslinging . | . . . . . . . . . . . . . . . . . . . . . . . . . . . . . . . . . . . . Exploded 3 | . 2 . 2 . . . . 2 1 . 1 . 2 2 . . . 2 2 2 . . . . . . . 3 . 1 . . . . . Melee 1 | . . . . . . . . 1 1 1 1 . 1 1 . 1 . 1 1 1 1 . . 1 . . . . . 1 . 1 . . . Uniques/NPCs Destroyed . | . . . . . . . . . . . . . . . . . . . . . . . . . . . . . . . . . . . . Combat | -11 -10 -10 -9 -9 -9 -8 -8 -8 -8 -8 -7 -7 -7 -7 -7 -7 -6 -6 -5 -5 -5 -5 -4 -4 -4 -4 -4 -4 -3 -3 -2 -2 -1 -1 -1 -------- Run | Scr Mat Min Mat Min Exi Min Mat Gar Mat Gar Fac Was Fac Gar Fac Gar Fac Gar Fac Gar Fac Gar Fac Ext Cet Arc Hub Gar Res Gar Res Gar Acc Gar Acc Damage Taken 21157 | . 71 . 867 . . 38 834 801 1703 175 170 48 206 129 110 1353 117 1065 3152 1340 73 276 796 591 89 . 79 1630 787 1579 28 1292 226 246 1286 Core 2010 | . 11 . 172 . . . 74 111 172 18 . . 33 21 . 164 . 84 307 66 . 16 200 87 24 . . 79 76 45 . 133 25 27 65 Absorbed by Shields 1017 | . . . . . . . . . . . . . . . . . . . . . . . . 35 11 . . . . 971 . . . . . Reduced by Siege Mode 81 | . . . . . . . . . . . . . . . . . . 8 . . . . . . . . . . . 73 . . . . . Regen/Repaired (Parts) 684 | . . . . . . . . . 134 . . . . . . . 184 . . . . . 366 . . . . . . . . . . . . Core Remaining (%) 76 | 100 . 95 . . . 57 . . . 31 . . . . . 68 . 90 . . . 61 . . . . . 66 . 90 . 90 . . 92 Volleys Fired 1196 | . 11 . 81 . . 3 4 38 35 16 8 70 12 24 8 33 19 115 33 57 12 51 54 64 6 1 3 112 44 92 2 32 19 54 83 Largest 3 | . 2 . 3 . . 3 3 3 3 1 1 2 2 2 1 2 1 2 1 2 1 1 1 1 1 1 1 1 1 1 1 1 1 1 1 Hottest 240 | . 70 . 113 . . 102 111 71 136 5 36 100 160 160 7 160 75 163 88 240 120 120 120 120 120 7 120 120 120 120 7 120 120 120 120 Shots Fired 1505 | . 20 . 223 . . 9 12 81 75 17 8 94 18 32 9 34 19 120 34 65 13 50 54 67 6 1 3 114 44 93 2 32 19 54 83 Gun 487 | . 18 . 216 . . 9 12 74 59 1 2 10 . . . . 5 79 2 . . . . . . . . . . . . . . . . Cannon 513 | . . . . . . . . . 11 . . 50 10 18 1 5 . 3 6 29 2 28 45 47 3 . 2 91 29 64 . 9 6 19 35 Launcher 54 | . 2 . 7 . . . . 7 5 . 3 1 4 3 . . . 2 1 8 . . . . . . . 1 . 10 . . . . . Special 451 | . . . . . . . . . . 16 3 33 4 11 8 29 14 36 25 28 11 22 9 20 3 1 1 22 15 19 2 23 13 35 48 Kinetic 351 | . 9 . 120 . . 6 8 74 59 1 2 10 . . . . . 62 . . . . . . . . . . . . . . . . . Thermal 649 | . 9 . 96 . . 3 4 . 11 . . 76 10 18 1 5 5 17 2 29 2 28 37 47 3 . 2 82 29 64 . 9 6 19 35 Explosive 54 | . 2 . 7 . . . . 7 5 . 3 1 4 3 . . . 2 1 8 . . . . . . . 1 . 10 . . . . . Electromagnetic 26 | . . . . . . . . . . . . . . . . . . 3 6 . . . 8 . . . . 9 . . . . . . . Robot Hit Streak 29 | . 16 . 21 . . 7 11 19 11 5 7 17 5 7 10 7 6 29 15 9 7 11 5 11 2 2 . 9 4 16 4 8 5 11 22 Robot Miss Streak 5 | . . . 3 . . 1 . 1 3 2 2 2 3 3 2 3 2 4 1 2 1 3 2 5 1 . 3 4 4 2 . 1 3 4 2 Penetration Max 1 | . . . . . . . . . 1 . . . . . . . . . . . . . . . . . . . . . . . . . . Secondary Targets 6 | . . . 3 . . . . 3 . . . . . . . . . . . . . . . . . . . . . . . . . . . Max Gunslinging Chain 1 | . . . 1 . . . . 1 . . . . . . . . . . . . . . . . . . . . . . . . . . . Capacitor 207 | . . . . . . . . . . . . . . . . . . . . . . . 43 39 3 . 2 80 29 11 . . . . . Shots Hit Robots 1138 | . 16 . 140 . . 6 13 74 50 15 12 79 12 20 7 52 16 107 59 52 12 40 20 46 3 11 . 61 17 59 3 26 11 35 64 Core Hits 401 | . 8 . 77 . . 3 6 25 31 . 8 11 7 11 . 6 5 51 14 28 1 10 9 13 . 5 . 26 4 26 . 2 1 7 6 Critical Kills 14 | . . . 1 . . . . . 1 . 2 1 1 . . 1 . 1 . 1 . . . 1 . . . 2 . 1 . . . . 1 Critical Parts Destroyed 18 | . . . . . . . . . . 1 . . . 1 . 6 . 3 7 . . . . . . . . . . . . . . . . Critical Strikes 41 | . 1 . 3 . . . . . 1 1 2 1 1 1 . 7 . 4 7 2 . . . 1 . 2 . 3 . 2 . 1 . . 1 Burn 3 | . 1 . 2 . . . . . . . . . . . . . . . . . . . . . . . . . . . . . . . . Meltdown 7 | . . . . . . . . . . . . 1 . . . . . . . 1 . . . 1 . . . 2 . 1 . . . . 1 Destroy 4 | . . . 1 . . . . . 1 . . . . . . . . 2 . . . . . . . . . . . . . . . . . Smash 21 | . . . . . . . . . . 1 2 . 1 1 . 7 . 2 7 . . . . . . . . . . . . . . . . Impale 6 | . . . . . . . . . . . . . . . . . . . . 1 . . . . . 2 . 1 . 1 . 1 . . . Melee Attacks 324 | . . . . . . . 16 26 2 8 17 . 11 20 3 59 8 33 43 16 7 15 2 4 . 10 . 10 1 6 1 5 . 1 . Impact 197 | . . . . . . . . . 2 8 17 . 11 20 3 59 8 33 31 5 . . . . . . . . . . . . . . . Slashing 38 | . . . . . . . 16 22 . . . . . . . . . . . . . . . . . . . . . . . . . . . Piercing 85 | . . . . . . . . . . . . . . . . . . . 12 11 7 15 2 4 . 10 . 10 1 6 1 5 . 1 . Sneak Attacks 73 | . . . . . . . 2 5 . 2 6 . 1 1 . 11 1 6 1 9 2 8 . 4 . 9 . . . 3 1 1 . . . Combat Hostiles 38 | . . . . . . . . 4 . 2 . . . 1 . 9 . 6 1 7 2 2 . 2 . . . . . 1 . 1 . . . Follow-up Attacks . | . . . . . . . . . . . . . . . . . . . . . . . . . . . . . . . . . . . . Damage Inflicted 32794 | . 365 14 2612 . . 92 346 1761 1477 300 777 1649 503 769 . 2006 127 2358 1926 2311 181 1292 799 1711 43 1017 . 2454 335 3187 127 463 145 612 1035 Guns 6329 | . 195 . 2128 . . 92 168 1035 929 9 20 161 . . . . 62 1477 53 . . . . . . . . . . . . . . . . Cannons 12138 | . . . . . . . . . 131 . . 1249 125 205 . 116 . 22 144 784 44 721 799 1203 43 . . 2023 335 2184 . 277 86 612 1035 Explosions 4608 | . 170 . 483 . . . . 417 374 . 293 . 194 325 . . . 210 293 798 . . . 113 . . . 296 . 642 . . . . . Melee 9323 | . . . . . . . 178 309 39 291 464 . 184 239 . 1890 65 649 1435 729 137 571 . 359 . 1017 . 135 . 319 127 186 . . . Ramming 157 | . . 14 1 . . . . . 4 . . . . . . . . . 1 . . . . 36 . . . . . 42 . . 59 . . Kinetic 4814 | . 116 . 1259 . . 46 98 1035 929 9 20 161 . . . . . 1141 . . . . . . . . . . . . . . . . . Thermal 13658 | . 79 . 869 . . 46 70 . 131 . . 1488 125 205 . 116 62 336 236 784 44 721 616 1316 43 . . 1842 335 2184 . 277 86 612 1035 Explosive 4243 | . 170 . 483 . . . . 417 374 . 293 . 194 325 . . . 210 41 798 . . . . . . . 296 . 642 . . . . . Electromagnetic 599 | . . . . . . . . . . . . . . . . . . 22 213 . . . 183 . . . . 181 . . . . . . . Impact 5126 | . . . . . . . . . 39 291 464 . 184 239 . 1890 65 649 1128 177 . . . . . . . . . . . . . . . Slashing 487 | . . . . . . . 178 309 . . . . . . . . . . . . . . . . . . . . . . . . . . . Piercing 3710 | . . . . . . . . . . . . . . . . . . . 307 552 137 571 . 359 . 1017 . 135 . 319 127 186 . . . Highest Corruption 29 | . . . . . . . . 2 2 2 2 2 3 3 3 15 . 7 29 27 27 28 1 5 5 5 . 8 3 6 . . . 1 1 Average Corruption 7 | . . . . . . . . 1 2 2 2 2 2 3 3 4 . 6 15 23 27 27 1 4 5 3 . 4 2 5 . . . 1 1 Corruption Purged 12 | . . . . . . . . . . . . . . . . . . . 2 5 . . . . . 5 . . . . . . . . . Corruption Blocked . | . . . . . . . . . . . . . . . . . . . . . . . . . . . . . . . . . . . . Effects 468 | . . . . . . . . 11 12 6 5 10 10 21 8 28 . 39 38 60 37 54 7 32 11 2 . 12 9 49 . . . 1 6 Message Errors 115 | . . . . . . . . 4 . 2 2 1 3 7 2 5 . 7 11 19 10 13 3 11 1 . . 2 1 9 . . . . 2 Matter Fused 110 | . . . . . . . . 4 4 1 2 2 . 2 . 8 . 6 9 11 9 12 2 8 4 1 . 3 4 17 . . . . 1 Heat Flow Errors 55 | . . . . . . . . 1 1 1 . 1 . 2 1 5 . 6 7 8 6 5 1 2 1 . . 2 2 2 . . . . 1 Energy Discharges 63 | . . . . . . . . 1 4 1 1 1 3 1 3 4 . 7 3 6 3 8 1 . 2 . . 3 1 10 . . . . . Parts Rejected 5 | . . . . . . . . . 1 . . . . . . . . . 1 1 . 1 . . . . . . . 1 . . . . . Data Loss (minor) 56 | . . . . . . . . . . . . 2 1 5 . 3 . 5 3 7 6 7 . 4 2 . . . 1 7 . . . 1 2 Data Loss (major) 21 | . . . . . . . . 1 . . . . 1 2 1 1 . 2 1 5 1 2 . 3 . 1 . . . . . . . . . Misfires 24 | . . . . . . . . . 1 1 . 2 2 2 1 . . 4 1 2 1 1 . 3 . . . 2 . 1 . . . . . Alerts 12 | . . . . . . . . . . . . 1 . . . 1 . 2 . 1 1 2 . 1 1 . . . . 2 . . . . . Misdirections 4 | . . . . . . . . . . . . . . . . 1 . . 2 . . 1 . . . . . . . . . . . . . Weapon Failures 3 | . . . . . . . . . 1 . . . . . . . . . . . . 2 . . . . . . . . . . . . . Overload Shots . | . . . . . . . . . . . . . . . . . . . . . . . . . . . . . . . . . . . . Overflow Damage 3545 | . 14 . . . . . 28 6 6 78 250 . 37 148 . 622 35 236 564 264 9 70 89 184 19 380 . 94 . 171 57 110 4 41 29 Projectiles 676 | . . . . . . . . . . . . . . . . 5 . . 35 118 9 51 89 125 19 . . 70 . 81 . . 4 41 29 Explosions 142 | . 14 . . . . . . 6 6 . 58 . . 30 . . . . 25 1 . . . . . . . . . 2 . . . . . Melee 2727 | . . . . . . . 28 . . 78 192 . 37 118 . 617 35 236 504 145 . 19 . 59 . 380 . 24 . 88 57 110 . . . Knockbacks 21 | . . 1 . . . . . . . . 1 . 1 . . 5 1 2 10 . . . . . . . . . . . . . . . . Impact 19 | . . 1 . . . . . . . . 1 . 1 . . 4 1 2 9 . . . . . . . . . . . . . . . . Kinetic . | . . . . . . . . . . . . . . . . . . . . . . . . . . . . . . . . . . . . Secondary 2 | . . . . . . . . . . . . . . . . 1 . . 1 . . . . . . . . . . . . . . . . Self-Inflicted Damage 440 | . . . . . . . . 20 22 . 43 49 . . . . . 61 99 75 . . . . . . . 38 . 33 . . . . . Shots 14 | . . . . . . . . 1 1 . 1 1 . . . . . 2 3 3 . . . . . . . 1 . 1 . . . . . Rammed 7 | . . . . . . . . . . . . . . . . . . . 1 . . . . 1 . . . . . 2 . . 3 . . Targets Rammed 12 | . . 2 1 . . . . . 1 . . . . . . . . . 1 . . . . 1 . . . . . 3 . . 3 . . Kicked 3 | . . 2 1 . . . . . . . . . . . . . . . . . . . . . . . . . . . . . . . . Crushed 2 | . . . . . . . . . 1 . . . . . . . . . . . . . . . . . . . . 1 . . . . . Highest Temperature 444 | . 69 . 250 . . 90 100 200 205 254 . 435 54 297 70 259 66 247 231 233 214 240 444 258 126 . 147 378 305 174 . 14 . 30 330 Average Temperature 84 | . 30 . 55 . . 41 33 46 62 134 . 127 24 116 46 94 28 73 70 90 80 77 97 99 55 . 94 115 111 78 . 14 . 11 105 Received Heat Transfer 3361 | . 30 . 384 . . . 261 234 747 99 . . 30 63 6 144 24 66 213 81 9 27 9 73 9 . 21 256 118 211 . 117 45 39 45 Effects 11 | . . . . . . . . . 3 1 . 1 . 2 . . . 1 . . . . . 3 . . . . . . . . . . . Shutdowns 1 | . . . . . . . . . . . . 1 . . . . . . . . . . . . . . . . . . . . . . . Energy Bleed 2 | . . . . . . . . . . . . . . 1 . . . 1 . . . . . . . . . . . . . . . . . Interference 8 | . . . . . . . . . 3 1 . . . 1 . . . . . . . . . 3 . . . . . . . . . . . Siege Activations 5 | . . . . . . . . . . . . . . . . . . 1 . . . . . . . . . 2 . 1 . 1 . . . Total Turns 58 | . . . . . . . . . . . . . . . . . . 14 . . . . . . . . . 4 . 37 . 3 . . . Longest Duration 37 | . . . . . . . . . . . . . . . . . . 14 . . . . . . . . . 3 . 37 . 3 . . . Robots Corrupted 2 | . . . . . . . . . . . . . . . . . . . 1 . . . . . . . . 1 . . . . . . . Combat Hostiles 2 | . . . . . . . . . . . . . . . . . . . 1 . . . . . . . . 1 . . . . . . . Parts Fried 28 | . . . . . . . . . . 2 6 . 5 . . 5 4 1 1 . . . 2 2 . . . . . . . . . . . Impact Corruptions 64 | . . . . . . . . . . 4 5 . 3 3 . 21 2 5 19 1 . . . 1 . . . . . . . . . . . Robots Melted 7 | . . . . . . . . . . . . 1 . . . . . . . 1 . . . 1 . . . 2 . 1 . . . . 1 Combat Hostiles 7 | . . . . . . . . . . . . 1 . . . . . . . 1 . . . 1 . . . 2 . 1 . . . . 1 Parts Melted 28 | . . . 3 . . . . . . . . 3 1 . . . . . . 3 . 1 . 3 . . . 3 1 6 . . . . 4 Heat Transferred 15127 | . 296 . 2200 . . 111 148 . 250 . . 3264 200 387 . 200 55 260 174 592 37 554 481 1018 37 . . 1480 259 1516 . 222 74 462 850 Parts Sabotaged . | . . . . . . . . . . . . . . . . . . . . . . . . . . . . . . . . . . . . Parts Stolen . | . . . . . . . . . . . . . . . . . . . . . . . . . . . . . . . . . . . . Parts Stripped . | . . . . . . . . . . . . . . . . . . . . . . . . . . . . . . . . . . . . Power Chain Reactions 1 | . . . . . . . . . . . . . . . . . . . 1 . . . . . . . . . . . . . . . . Missiles Intercepted . | . . . . . . . . . . . . . . . . . . . . . . . . . . . . . . . . . . . . Alert | -11 -10 -10 -9 -9 -9 -8 -8 -8 -8 -8 -7 -7 -7 -7 -7 -7 -6 -6 -5 -5 -5 -5 -4 -4 -4 -4 -4 -4 -3 -3 -2 -2 -1 -1 -1 ------- Run | Scr Mat Min Mat Min Exi Min Mat Gar Mat Gar Fac Was Fac Gar Fac Gar Fac Gar Fac Gar Fac Gar Fac Ext Cet Arc Hub Gar Res Gar Res Gar Acc Gar Acc Peak Influence 1068 | . 211 82 785 279 . 65 112 575 415 301 211 43 228 971 524 1054 617 989 608 1019 596 1068 575 579 449 349 216 1047 696 966 559 591 369 144 271 Initial 588 | . . 82 31 279 . . 7 1 280 148 157 37 . 159 509 298 553 323 518 363 534 383 552 128 260 179 . 151 588 125 543 419 354 72 69 Average 401 | . 132 82 428 279 . 6 14 286 304 200 96 23 64 654 445 658 542 697 476 664 518 891 404 235 407 204 83 609 343 478 549 514 314 64 50 Maximum Alert Level 3 | . 1 . 3 1 . . . 2 2 1 1 . 1 3 2 3 2 3 2 3 2 3 2 2 2 1 1 3 2 3 2 2 1 . 1 Low Security (%) 29 | 100 73 100 9 . . 100 100 40 8 56 72 100 93 6 . . . . . . . . . 39 . 58 85 3 42 8 . . 14 100 94 Level 1 24 | . 26 . 40 100 . . . 31 86 43 27 . 6 12 3 17 3 12 21 15 8 1 57 54 19 41 14 28 23 35 . . 85 . 5 Level 2 31 | . . . 39 . . . . 28 4 . . . . 28 96 50 96 39 78 42 91 8 42 5 80 . . 37 34 39 100 100 . . . Level 3 15 | . . . 10 . . . . . . . . . . 52 . 32 . 48 . 42 . 90 . . . . . 30 . 16 . . . . . Level 4 . | . . . . . . . . . . . . . . . . . . . . . . . . . . . . . . . . . . . . Level 5 . | . . . . . . . . . . . . . . . . . . . . . . . . . . . . . . . . . . . . High Security . | . . . . . . . . . . . . . . . . . . . . . . . . . . . . . . . . . . . . Max Security . | . . . . . . . . . . . . . . . . . . . . . . . . . . . . . . . . . . . . Squads Dispatched 33 | . 1 . 3 . . . 3 . 1 . 1 . 2 . . . . . 6 . 1 . 5 2 . . 2 . 1 . 1 . 1 . 3 Investigation 8 | . 1 . 2 . . . 2 . . . . . . . . . . . . . . . 1 1 . . 1 . . . . . . . . Extermination 11 | . . . . . . . . . . . 1 . 2 . . . . . 2 . 1 . 1 . . . . . 1 . 1 . . . 2 Reinforcement 9 | . . . 1 . . . 1 . 1 . . . . . . . . . . . . . 3 1 . . 1 . . . . . . . 1 Assault 1 | . . . . . . . . . . . . . . . . . . . 1 . . . . . . . . . . . . . . . . Garrison 4 | . . . . . . . . . . . . . . . . . . . 3 . . . . . . . . . . . . . 1 . . Intercept . | . . . . . . . . . . . . . . . . . . . . . . . . . . . . . . . . . . . . Searches Triggered . | . . . . . . . . . . . . . . . . . . . . . . . . . . . . . . . . . . . . Construction Impeded . | . . . . . . . . . . . . . . . . . . . . . . . . . . . . . . . . . . . . Haulers Reinforced . | . . . . . . . . . . . . . . . . . . . . . . . . . . . . . . . . . . . . Active Scanning Responses . | . . . . . . . . . . . . . . . . . . . . . . . . . . . . . . . . . . . . Cargo Convoy Interrupts . | . . . . . . . . . . . . . . . . . . . . . . . . . . . . . . . . . . . . Alert ID Control Effect 91 | . . . . . . . . . . . . . . . . . . . 3 4 4 12 2 8 3 . 1 1 1 3 . 12 7 15 15 Stealth | -11 -10 -10 -9 -9 -9 -8 -8 -8 -8 -8 -7 -7 -7 -7 -7 -7 -6 -6 -5 -5 -5 -5 -4 -4 -4 -4 -4 -4 -3 -3 -2 -2 -1 -1 -1 --------- Run | Scr Mat Min Mat Min Exi Min Mat Gar Mat Gar Fac Was Fac Gar Fac Gar Fac Gar Fac Gar Fac Gar Fac Ext Cet Arc Hub Gar Res Gar Res Gar Acc Gar Acc Distress Signals 17 | . . . 5 . . . . . 3 . . . 1 . . . . . 1 . . 2 1 1 1 . 1 . . . . . . . 1 Communications Jammed 179 | . . . . . . . . . . . . . . . . . . . . . . . 15 66 6 . 2 . 1 . . 17 15 . 57 Distress Signals 174 | . . . . . . . . . . . . . . . . . . . . . . . 15 66 6 . . . 1 . . 17 15 . 54 Times Spotted 597 | . 6 . 44 . . 4 16 16 25 10 6 6 10 21 3 35 9 47 28 28 9 32 12 28 12 5 5 29 13 34 2 24 14 29 35 Peak Tracking Total 13 | . 3 . 5 . . 3 13 5 10 3 4 3 4 3 1 4 3 8 8 5 2 6 3 3 7 2 2 7 4 3 1 7 4 5 5 Tactical Retreats 18 | . . . 1 . . 1 . . . . . . . . . . . 2 3 1 . 1 1 2 . . . 2 4 . . . . . . Traps | -11 -10 -10 -9 -9 -9 -8 -8 -8 -8 -8 -7 -7 -7 -7 -7 -7 -6 -6 -5 -5 -5 -5 -4 -4 -4 -4 -4 -4 -3 -3 -2 -2 -1 -1 -1 ------- Run | Scr Mat Min Mat Min Exi Min Mat Gar Mat Gar Fac Was Fac Gar Fac Gar Fac Gar Fac Gar Fac Gar Fac Ext Cet Arc Hub Gar Res Gar Res Gar Acc Gar Acc Traps Triggered 35 | . 1 . 2 . . . 1 . . 1 2 . 1 1 . 1 . 1 1 . . 1 . . . . . 2 1 11 . 7 1 . . Indirectly . | . . . . . . . . . . . . . . . . . . . . . . . . . . . . . . . . . . . . Trap Hack Attempts . | . . . . . . . . . . . . . . . . . . . . . . . . . . . . . . . . . . . . Triggered . | . . . . . . . . . . . . . . . . . . . . . . . . . . . . . . . . . . . . Disarmed . | . . . . . . . . . . . . . . . . . . . . . . . . . . . . . . . . . . . . Reprogrammed . | . . . . . . . . . . . . . . . . . . . . . . . . . . . . . . . . . . . . Reused . | . . . . . . . . . . . . . . . . . . . . . . . . . . . . . . . . . . . . Traps Extracted . | . . . . . . . . . . . . . . . . . . . . . . . . . . . . . . . . . . . . Installed . | . . . . . . . . . . . . . . . . . . . . . . . . . . . . . . . . . . . . Triggered . | . . . . . . . . . . . . . . . . . . . . . . . . . . . . . . . . . . . . Machines | -11 -10 -10 -9 -9 -9 -8 -8 -8 -8 -8 -7 -7 -7 -7 -7 -7 -6 -6 -5 -5 -5 -5 -4 -4 -4 -4 -4 -4 -3 -3 -2 -2 -1 -1 -1 ---------- Run | Scr Mat Min Mat Min Exi Min Mat Gar Mat Gar Fac Was Fac Gar Fac Gar Fac Gar Fac Gar Fac Gar Fac Ext Cet Arc Hub Gar Res Gar Res Gar Acc Gar Acc Machines Disabled 76 | . 1 . . . . . . 1 . 2 . . 4 3 . 4 . 4 6 3 5 4 . 9 1 . . 5 1 11 . 4 . 6 2 Max in Single Turn 3 | . 1 . . . . . . 1 . 1 . . 2 1 . 1 . 1 3 1 . 1 . 1 1 . . 1 1 2 . 1 . 1 1 Garrison Access 1 | . . . . . . . . . . . . . . . . . . . . . . . 1 . . . . . . . . . . . . Garrison Relay 30 | . . . . . . . . 1 . 2 . . . 3 . 4 . 3 . 2 . 3 . . . . . 3 . 4 . 3 . 2 . Phase Generator 1 | . . . . . . . . . . . . . . . . . . 1 . . . . . . . . . . . . . . . . . Energy Cycler 2 | . . . . . . . . . . . . . . . . . . . . . . . . 1 . . . . . . . . . . 1 Machines Sabotaged . | . . . . . . . . . . . . . . . . . . . . . . . . . . . . . . . . . . . . Garrisons Compromised . | . . . . . . . . . . . . . . . . . . . . . . . . . . . . . . . . . . . . Overloaded Fab Kills . | . . . . . . . . . . . . . . . . . . . . . . . . . . . . . . . . . . . . Hacking | -11 -10 -10 -9 -9 -9 -8 -8 -8 -8 -8 -7 -7 -7 -7 -7 -7 -6 -6 -5 -5 -5 -5 -4 -4 -4 -4 -4 -4 -3 -3 -2 -2 -1 -1 -1 --------- Run | Scr Mat Min Mat Min Exi Min Mat Gar Mat Gar Fac Was Fac Gar Fac Gar Fac Gar Fac Gar Fac Gar Fac Ext Cet Arc Hub Gar Res Gar Res Gar Acc Gar Acc Machines Accessed 75 | . 4 . 5 . 2 . 3 1 6 . 2 . 4 4 2 2 1 3 2 1 2 2 7 7 . . 2 2 5 2 1 1 1 1 . Terminals 52 | . 4 . 4 . . . 2 1 3 . 1 . 2 4 1 2 . 3 . 1 . 2 5 7 . . 1 2 3 2 . 1 . 1 . Fabricators 4 | . . . . . . . . . . . . . 1 . . . . . . . 1 . 1 . . . . . 1 . . . . . . Repair Stations 2 | . . . . . . . . . 2 . . . . . . . . . . . . . . . . . . . . . . . . . . Recycling Units 3 | . . . 1 . . . . . . . 1 . . . . . . . 1 . . . . . . . . . . . . . . . . Scanalyzers . | . . . . . . . . . . . . . . . . . . . . . . . . . . . . . . . . . . . . Garrison Access 12 | . . . . . . . 1 . 1 . . . 1 . 1 . 1 . 1 . 1 . 1 . . . 1 . 1 . 1 . 1 . . Total Hacks 170 | . 13 . 16 . 2 . 9 5 19 . 6 . 15 5 6 5 1 5 2 2 3 3 18 13 . . 4 3 5 3 1 3 1 2 . Successful 77 | . 8 . 9 . 2 . 5 . 11 . 2 . 9 2 3 1 1 2 2 1 2 1 5 3 . . 1 1 1 1 1 1 1 1 . Failed 92 | . 4 . 7 . . . 4 5 8 . 4 . 6 3 3 4 . 3 . 1 1 2 13 10 . . 3 2 4 2 . 2 . 1 . Catastrophic 23 | . . . 2 . . . 1 1 . . . . 3 2 . 1 . 1 . . . . 2 4 . . 1 1 3 1 . . . . . Database Lockouts 1 | . 1 . . . . . . . . . . . . . . . . . . . . . . . . . . . . . . . . . . Manual 37 | . 4 . 6 . 1 . 5 . 2 . 1 . 4 1 3 2 . . 1 . 2 . 3 1 1 . . . . . . . . . . Terminals 133 | . 13 . 12 . . . 8 5 11 . 5 . 9 5 5 5 . 5 . 2 . 3 15 13 . . 3 3 3 3 . 3 . 2 . Fabricators 9 | . . . . . . . . . . . . . 4 . . . . . . . 2 . 2 . . . . . 1 . . . . . . Repair Stations 7 | . . . . . . . . . 7 . . . . . . . . . . . . . . . . . . . . . . . . . . Recycling Units 6 | . . . 4 . . . . . . . 1 . . . . . . . 1 . . . . . . . . . . . . . . . . Scanalyzers . | . . . . . . . . . . . . . . . . . . . . . . . . . . . . . . . . . . . . Garrison Access 13 | . . . . . . . 1 . 1 . . . 2 . 1 . 1 . 1 . 1 . 1 . . . 1 . 1 . 1 . 1 . . Terminal Hacks 46 | . 8 . 5 . 2 . 2 . 6 . 1 . 4 2 1 1 . 2 . 1 . 1 3 3 . . . 1 . 1 . 1 . 1 . Record 1 | . . . . . 1 . . . . . . . . . . . . . . . . . . . . . . . . . . . . . . Part Schematic 1 | . . . . . . . 1 . . . . . . . . . . . . . . . . . . . . . . . . . . . . Robot Analysis 4 | . 3 . 1 . . . . . . . . . . . . . . . . . . . . . . . . . . . . . . . . Prototype ID Bank 3 | . . . 2 . . . 1 . . . . . . . . . . . . . . . . . . . . . . . . . . . . Open Door 6 | . . . . . . . . . . . . . . 1 . . . 1 . . . . 1 3 . . . . . . . . . . . Branch Access Points 2 | . . . . . . . . . . . 1 . . . . . . . . . . . 1 . . . . . . . . . . . . Emergency Access Points 6 | . . . . . . . . . 1 . . . . 1 . . . 1 . . . . . . . . . 1 . . . 1 . 1 . Alert Level 3 | . . . 1 . . . . . 2 . . . . . . . . . . . . . . . . . . . . . . . . . . Unreport Threat 2 | . . . . . . . . . 1 . . . . . . . . . . . . . 1 . . . . . . . . . . . . Locate Traps 5 | . 2 . . . . . . . 1 . . . 2 . . . . . . . . . . . . . . . . . . . . . . Security Status 1 | . . . . . . . . . . . . . . . 1 . . . . . . . . . . . . . . . . . . . . Hauler Manifests 2 | . 1 . . . . . . . . . . . 1 . . . . . . . . . . . . . . . . . . . . . . Zone Layout 5 | . 2 . 1 . . . . . 1 . . . 1 . . . . . . . . . . . . . . . . . . . . . . Garrison Registry 2 | . . . . . . . . . . . . . . . . 1 . . . 1 . . . . . . . . . . . . . . . Security Stations 2 | . . . . . . . . . . . . . . . . . . . . . . 1 . . . . . . . 1 . . . . . EX-Prototype ID Bank 1 | . . . . . 1 . . . . . . . . . . . . . . . . . . . . . . . . . . . . . . Fabricator Hacks 2 | . . . . . . . . . . . . . 1 . . . . . . . . . 1 . . . . . . . . . . . . Build 2 | . . . . . . . . . . . . . 1 . . . . . . . . . 1 . . . . . . . . . . . . Repair Station Hacks 3 | . . . . . . . . . 3 . . . . . . . . . . . . . . . . . . . . . . . . . . Scan Component 2 | . . . . . . . . . 2 . . . . . . . . . . . . . . . . . . . . . . . . . . Repair 1 | . . . . . . . . . 1 . . . . . . . . . . . . . . . . . . . . . . . . . . Recycling Unit Hacks 1 | . . . 1 . . . . . . . . . . . . . . . . . . . . . . . . . . . . . . . . Report Inventory 1 | . . . 1 . . . . . . . . . . . . . . . . . . . . . . . . . . . . . . . . Scanalyzer . | . . . . . . . . . . . . . . . . . . . . . . . . . . . . . . . . . . . . Garrison Access Hacks 13 | . . . . . . . 1 . 1 . . . 2 . 1 . 1 . 1 . 1 . 1 . . . 1 . 1 . 1 . 1 . . Unlock Access 11 | . . . . . . . 1 . 1 . . . 1 . 1 . 1 . 1 . 1 . . . . . 1 . 1 . 1 . 1 . . Seal Access 1 | . . . . . . . . . . . . . . . . . . . . . . . 1 . . . . . . . . . . . . Coupler Status 1 | . . . . . . . . . . . . . 1 . . . . . . . . . . . . . . . . . . . . . . Unauthorized Hacks 12 | . . . 3 . . . 2 . 1 . 1 . 2 . 1 . . . 1 . 1 . . . . . . . . . . . . . . Terminals 6 | . . . . . . . 2 . 1 . . . 2 . 1 . . . . . . . . . . . . . . . . . . . . Botnet 4 | . . . . . . . 1 . 1 . . . 1 . 1 . . . . . . . . . . . . . . . . . . . . Operators 2 | . . . . . . . 1 . . . . . 1 . . . . . . . . . . . . . . . . . . . . . . Fabricators 1 | . . . . . . . . . . . . . . . . . . . . . 1 . . . . . . . . . . . . . . Haulers 1 | . . . . . . . . . . . . . . . . . . . . . 1 . . . . . . . . . . . . . . Repair Stations . | . . . . . . . . . . . . . . . . . . . . . . . . . . . . . . . . . . . . Recycling Units 5 | . . . 3 . . . . . . . 1 . . . . . . . 1 . . . . . . . . . . . . . . . . Reject 1 | . . . 1 . . . . . . . . . . . . . . . . . . . . . . . . . . . . . . . . Recyclers 3 | . . . 1 . . . . . . . 1 . . . . . . . 1 . . . . . . . . . . . . . . . . Mask 1 | . . . 1 . . . . . . . . . . . . . . . . . . . . . . . . . . . . . . . . Scanalyzers . | . . . . . . . . . . . . . . . . . . . . . . . . . . . . . . . . . . . . Garrison Access . | . . . . . . . . . . . . . . . . . . . . . . . . . . . . . . . . . . . . Data Cores Recovered . | . . . . . . . . . . . . . . . . . . . . . . . . . . . . . . . . . . . . Used . | . . . . . . . . . . . . . . . . . . . . . . . . . . . . . . . . . . . . Hacking Detections 57 | . 3 . 4 . . . 2 1 5 . 2 . 4 3 2 2 1 2 1 1 . 2 6 5 . . 1 2 4 1 . 1 1 1 . Full Trace Events 7 | . . . . . . . 1 1 . . . . . . . . . 1 . . . . 1 1 . . 1 1 . . . . . . . Feedback Events . | . . . . . . . . . . . . . . . . . . . . . . . . . . . . . . . . . . . . Feedback Blocked . | . . . . . . . . . . . . . . . . . . . . . . . . . . . . . . . . . . . . Robot Schematics Acquired . | . . . . . . . . . . . . . . . . . . . . . . . . . . . . . . . . . . . . Robots Built . | . . . . . . . . . . . . . . . . . . . . . . . . . . . . . . . . . . . . Authchips . | . . . . . . . . . . . . . . . . . . . . . . . . . . . . . . . . . . . . Time . | . . . . . . . . . . . . . . . . . . . . . . . . . . . . . . . . . . . . Total Robot Build Rating . | . . . . . . . . . . . . . . . . . . . . . . . . . . . . . . . . . . . . Part Schematics Acquired 1 | . . . . . . . 1 . . . . . . . . . . . . . . . . . . . . . . . . . . . . Parts Built 2 | . . . . . . . . . . . . . 1 . . . . . . . . . 1 . . . . . . . . . . . . Authchips . | . . . . . . . . . . . . . . . . . . . . . . . . . . . . . . . . . . . . Time 245 | . . . . . . . . . . . . . 106 . . . . . . . . . 139 . . . . . . . . . . . . Total Part Build Rating 15 | . . . . . . . . . . . . . 6 . . . . . . . . . 9 . . . . . . . . . . . . Parts Repaired 1 | . . . . . . . . . 1 . . . . . . . . . . . . . . . . . . . . . . . . . . Time 32 | . . . . . . . . . 32 . . . . . . . . . . . . . . . . . . . . . . . . . . Parts Recycled . | . . . . . . . . . . . . . . . . . . . . . . . . . . . . . . . . . . . . Recycled Matter . | . . . . . . . . . . . . . . . . . . . . . . . . . . . . . . . . . . . . Retrieved Matter . | . . . . . . . . . . . . . . . . . . . . . . . . . . . . . . . . . . . . Retrieved Components . | . . . . . . . . . . . . . . . . . . . . . . . . . . . . . . . . . . . . Parts Scanalyzed . | . . . . . . . . . . . . . . . . . . . . . . . . . . . . . . . . . . . . Part Schematics Acquired . | . . . . . . . . . . . . . . . . . . . . . . . . . . . . . . . . . . . . Parts Damaged . | . . . . . . . . . . . . . . . . . . . . . . . . . . . . . . . . . . . . Bothacking | -11 -10 -10 -9 -9 -9 -8 -8 -8 -8 -8 -7 -7 -7 -7 -7 -7 -6 -6 -5 -5 -5 -5 -4 -4 -4 -4 -4 -4 -3 -3 -2 -2 -1 -1 -1 ------------ Run | Scr Mat Min Mat Min Exi Min Mat Gar Mat Gar Fac Was Fac Gar Fac Gar Fac Gar Fac Gar Fac Gar Fac Ext Cet Arc Hub Gar Res Gar Res Gar Acc Gar Acc Used RIF Installer 12 | . . . . . . . . 1 . 1 . . . 1 . 1 . 1 . 1 . 1 . . . . . 1 . 1 . 1 . 2 . Coupler Efficiency 1 | . . . . . . . . . . . . . . . . . . . . . . . . . . . . . . . . . . 1 . Command Fork 3 | . . . . . . . . . . . . . . . . 1 . . . . . . . . . . . . . 1 . . . 1 . Robot Detection 1 | . . . . . . . . . . 1 . . . . . . . . . . . . . . . . . . . . . . . . . Watcher Feeds 1 | . . . . . . . . . . . . . . . . . . . . 1 . . . . . . . . . . . . . . . Patrol Navigation 1 | . . . . . . . . . . . . . . . . . . . . . . 1 . . . . . . . . . . . . . Alert ID Control 1 | . . . . . . . . . . . . . . . . . . 1 . . . . . . . . . . . . . . . . . Structural Interface 1 | . . . . . . . . . . . . . . . . . . . . . . . . . . . . 1 . . . . . . . Autooverride 1 | . . . . . . . . . . . . . . 1 . . . . . . . . . . . . . . . . . . . . . Crosswire 1 | . . . . . . . . . . . . . . . . . . . . . . . . . . . . . . . . 1 . . . Robots Hacked 226 | . . . . . . . . 3 . 7 3 6 2 10 2 16 7 17 9 16 6 14 4 12 2 . . 11 4 13 1 14 11 16 20 Non-combat 22 | . . . . . . . . . . . 3 . 1 . 1 . 1 . 1 . 2 . 2 3 . . . . 1 . . . 3 . 4 Combat 204 | . . . . . . . . 3 . 7 . 6 1 10 1 16 6 17 8 16 4 14 2 9 2 . . 11 3 13 1 14 8 16 16 Autooverrided 33 | . . . . . . . . . . . . . . 3 . 2 . 2 2 4 . 2 . 4 1 . . 2 . 2 . 2 4 2 1 Robot Hacks Applied 218 | . . . . . . . . 3 . 7 3 6 3 7 5 16 8 18 11 14 7 12 4 8 1 . . 9 7 12 1 13 9 14 20 map_walls 1 | . . . . . . . . . . . . . . . . . . . . . . . . . . . . . . . . . 1 . . map_earth 1 | . . . . . . . . . . . 1 . . . . . . . . . . . . . . . . . . . . . . . . drop_inventory 9 | . . . . . . . . . . . 1 . 1 . . . . . . . 2 . . 2 . . . . . . . . 1 . 2 purge_threat 5 | . . . . . . . . . . . . . . . 1 . . . . . . . . 1 . . . . 3 . . . . . . block_reporting 1 | . . . . . . . . . . . . . . . 1 . . . . . . . . . . . . . . . . . . . . map_route 4 | . . . . . . . . . . . 1 . . . . . . . 1 . . . . . . . . . . . . . 1 . 1 ignore_targets 6 | . . . . . . . . . . . . 6 . . . . . . . . . . . . . . . . . . . . . . . find_garrison 6 | . . . . . . . . . . . . . 1 . 1 . 1 . 1 . 1 . . . . . . . 1 . . . . . . scatter_targeting 4 | . . . . . . . . . . . . . . . . 1 . . 1 . . 1 . 1 . . . . . . . . . . . spike_heat 2 | . . . . . . . . . . . . . . 1 . . . . . . . . . . . . . . . . . . 1 . . overload_power 4 | . . . . . . . . . . . . . . . . 1 . . . . . . 1 . . . . . . . . 1 . . 1 amplify_resonance 29 | . . . . . . . . . . 1 . . . 1 . 4 1 3 2 2 . 2 . . 1 . . 3 . 2 . 3 1 2 1 wipe_record 8 | . . . . . . . . . . . . . . . . 1 . 1 . 1 1 . . 1 . . . 1 1 . . . . . 1 reboot_system 41 | . . . . . . . . 2 . 2 . . . 3 . 4 3 5 2 3 1 5 1 . . . . 1 . 4 . 1 3 . 1 overwrite_iff 36 | . . . . . . . . . . 3 . . . 1 . 3 1 4 3 5 . 1 . . . . . 1 1 3 . 3 . 6 1 formatsys_low 4 | . . . . . . . . . . . . . . . 1 . 1 . . . . . 1 . . . . . . . . . . . 1 formatsys_high 54 | . . . . . . . . 1 . 1 . . 1 1 1 1 1 5 1 3 2 3 1 3 . . . 3 1 3 1 4 1 6 10 formatsys_deep 3 | . . . . . . . . . . . . . . . . 1 . . . . . . . . . . . . . . . 1 . . 1 Relay Couplers Released 130 | . . . . . . . . 7 . 9 . . . 17 . 15 . 12 . 8 . 9 . . . . . 12 . 20 . 13 . 8 . Machine Destruction 114 | . . . . . . . . 3 . 9 . . . 13 . 15 . 12 . 8 . 9 . . . . . 12 . 16 . 9 . 8 . Programmers 16 | . . . . . . . . 4 . . . . . 4 . . . . . . . . . . . . . . . 4 . 4 . . . Attached 86 | . . . . . . . . 2 . 4 1 2 . 5 . 12 1 8 2 9 1 4 . . 1 . . 5 2 9 1 6 2 6 3 Crosswired 6 | . . . . . . . . . . . . . . . . . . . . . . . . . . . . . . . . 4 . 2 . Fabnet Peak Effective % . | . . . . . . . . . . . . . . . . . . . . . . . . . . . . . . . . . . . . Robots Rewired 28 | . . . . . . . . . . . . . . 3 . 3 . 3 . . . . . 13 . . . . . 6 . . . . . Allies Hacked 9 | . . . . . . . . . . . . . . . . 1 . . . . . . . . . . . . 1 1 . . 1 4 1 Hacks Repelled . | . . . . . . . . . . . . . . . . . . . . . . . . . . . . . . . . . . . . Allies | -11 -10 -10 -9 -9 -9 -8 -8 -8 -8 -8 -7 -7 -7 -7 -7 -7 -6 -6 -5 -5 -5 -5 -4 -4 -4 -4 -4 -4 -3 -3 -2 -2 -1 -1 -1 -------- Run | Scr Mat Min Mat Min Exi Min Mat Gar Mat Gar Fac Was Fac Gar Fac Gar Fac Gar Fac Gar Fac Gar Fac Ext Cet Arc Hub Gar Res Gar Res Gar Acc Gar Acc Total Allies 215 | . . . . 1 . . . 1 . 4 . . 4 8 2 12 3 16 5 14 2 11 3 30 6 . . 8 3 16 1 17 4 20 24 Largest Group 21 | . . . . 1 1 . . 1 . 1 . . 4 5 3 5 3 4 1 3 1 5 4 21 19 18 14 6 2 7 5 8 8 8 10 Highest-Rated Group 1098 | . . . . 31 31 . . 16 . 18 . . 125 143 90 106 72 186 47 147 137 370 156 985 1098 1098 841 515 112 313 235 404 430 567 606 Highest-Rated Ally 219 | . . . . 31 31 . . 16 . 18 . . 32 32 32 32 29 116 47 49 137 137 49 159 159 152 96 96 56 64 64 148 69 219 178 Total Orders 13 | . . . . . . . . . . . . . . 2 . 4 2 . . . . . 1 4 . . . . . . . . . . . STAY 7 | . . . . . . . . . . . . . . 1 . 3 1 . . . . . . 2 . . . . . . . . . . . ROAM 1 | . . . . . . . . . . . . . . 1 . . . . . . . . . . . . . . . . . . . . . FOLLOW 3 | . . . . . . . . . . . . . . . . 1 . . . . . . . 2 . . . . . . . . . . . AID 2 | . . . . . . . . . . . . . . . . . 1 . . . . . 1 . . . . . . . . . . . . Ally Attacks 1163 | . . . . . . . . 17 . 12 . . 12 64 3 51 29 53 27 27 14 78 11 189 47 35 56 54 6 60 1 69 52 53 143 Total Damage 37344 | . . . . . . . . 210 . 272 . . 205 1911 118 1316 364 1410 407 924 607 3147 340 5122 1433 1247 1824 1666 244 1909 47 3519 1955 2542 4605 Kills 213 | . . . . . . . . 2 . 3 . . 2 19 1 12 2 7 3 4 4 22 2 27 11 4 9 11 1 10 1 15 7 16 18 Allies Corrupted 5 | . . . . . . . . . . . . . . . . 1 . . . 1 . . . . . . . . 1 . . . . 1 1 Allies Melted 4 | . . . . . . . . . . . . . . 2 . . . . . . . . . 1 . . . 1 . . . . . . . Intel | -11 -10 -10 -9 -9 -9 -8 -8 -8 -8 -8 -7 -7 -7 -7 -7 -7 -6 -6 -5 -5 -5 -5 -4 -4 -4 -4 -4 -4 -3 -3 -2 -2 -1 -1 -1 ------- Run | Scr Mat Min Mat Min Exi Min Mat Gar Mat Gar Fac Was Fac Gar Fac Gar Fac Gar Fac Gar Fac Gar Fac Ext Cet Arc Hub Gar Res Gar Res Gar Acc Gar Acc Robot Analysis Total 4 | . 3 . 1 . . . . . . . . . . . . . . . . . . . . . . . . . . . . . . . . Derelict Logs Recovered 3 | . . 2 . 1 . . . . . . . . . . . . . . . . . . . . . . . . . . . . . . . Drone Launches . | . . . . . . . . . . . . . . . . . . . . . . . . . . . . . . . . . . . . Drone Recoveries . | . . . . . . . . . . . . . . . . . . . . . . . . . . . . . . . . . . . . Exploration | -11 -10 -10 -9 -9 -9 -8 -8 -8 -8 -8 -7 -7 -7 -7 -7 -7 -6 -6 -5 -5 -5 -5 -4 -4 -4 -4 -4 -4 -3 -3 -2 -2 -1 -1 -1 ------------- Run | Scr Mat Min Mat Min Exi Min Mat Gar Mat Gar Fac Was Fac Gar Fac Gar Fac Gar Fac Gar Fac Gar Fac Ext Cet Arc Hub Gar Res Gar Res Gar Acc Gar Acc Turns Passed 30447 | 5 394 289 1331 128 472 600 760 1522 865 531 869 717 704 1270 296 1471 490 1832 1140 1304 752 1070 942 1214 289 915 218 1616 695 2128 274 1015 469 648 1212 Spaces Moved 13712 | 1 287 234 541 65 294 260 286 608 319 223 325 228 387 667 165 698 235 815 476 610 433 597 456 628 106 88 117 722 262 815 118 395 181 343 727 Core 26 | . . . . . . . . . . . . . . . . . . . . . . . . . . 26 . . . . . . . . . Treads 12371 | . . . 92 65 294 260 286 608 319 223 325 228 387 667 165 676 235 815 154 610 433 597 456 628 106 62 117 722 262 815 118 395 181 343 727 Legs 971 | 1 287 234 449 . . . . . . . . . . . . . . . . . . . . . . . . . . . . . . . . Wheels 344 | . . . . . . . . . . . . . . . . 22 . . 322 . . . . . . . . . . . . . . . . Hover . | . . . . . . . . . . . . . . . . . . . . . . . . . . . . . . . . . . . . Flight . | . . . . . . . . . . . . . . . . . . . . . . . . . . . . . . . . . . . . Fastest Speed 120 | 120 120 120 120 160 160 160 160 160 160 160 240 160 160 160 160 150 160 160 145 145 145 145 145 145 145 160 160 152 145 145 225 225 145 145 145 Average Speed 175 | 120 120 120 176 189 160 221 234 201 207 184 240 214 160 160 160 160 160 160 164 148 145 145 145 145 154 836 160 164 219 209 225 225 203 145 145 Slowest Speed 2450 | 120 120 120 240 240 160 240 240 240 240 240 240 240 160 160 160 240 160 240 240 160 225 145 145 145 160 2450 160 225 225 225 225 225 225 145 145 Overloaded Moves . | . . . . . . . . . . . . . . . . . . . . . . . . . . . . . . . . . . . . Propulsion Burnouts . | . . . . . . . . . . . . . . . . . . . . . . . . . . . . . . . . . . . . Robots Hopped 1 | . . . . . . . . . . . . . . . . . . 1 . . . . . . . . . . . . . . . . . Cave-ins Triggered 1 | . . . . . . . . . . . . . . . . . . . . . . . . . . . . 1 . . . . . . . Exploration Rate (%) 45 | 2 57 85 48 19 69 68 35 51 39 35 14 80 20 87 5 69 9 80 15 74 15 67 19 86 61 75 21 65 16 90 7 70 16 52 34 Regions Visited 35 Branch Regions 8 Pre-discovered Areas 2 | . . 1 . . 1 . . . . . . . . . . . . . . . . . . . . . . . . . . . . . . Known Exits Taken 12 | . . . . . . . 1 . 1 . . . 1 . 1 . 1 . 1 . 1 . 1 . . . 1 . 1 . 1 . 1 . . Unknown Exits Taken 10 | 1 1 1 1 1 1 1 . . . . . . . . . . . . . . . . . 1 1 1 . . . . . . . . . Scrap Searched 3 | . . 1 . 1 . 1 . . . . . . . . . . . . . . . . . . . . . . . . . . . . . Spaces Dug 163 | . . . . . . . 12 10 1 . 6 . 6 4 3 3 6 36 1 3 5 2 23 . . . . 19 11 6 . . 3 1 2 Terrain Destroyed 550 | . 7 . 33 . . . 12 46 32 . 27 9 14 20 3 3 6 39 40 40 6 8 24 30 1 . 2 40 20 53 . 2 4 2 27 Melee 82 | . . . . . . . 12 8 1 . 6 . 6 4 3 3 6 18 1 2 5 1 . . . . . 4 1 1 . . . . . Projectile 134 | . . . . . . . . . 4 . . . . . . . . 3 . 8 1 7 24 8 1 . 2 33 19 8 . 2 4 2 8 AOE 334 | . 7 . 33 . . . . 38 27 . 21 9 8 16 . . . 18 39 30 . . . 22 . . . 3 . 44 . . . . 19 Terrain Rammed . | . . . . . . . . . . . . . . . . . . . . . . . . . . . . . . . . . . . . Walls Destroyed . | . . . . . . . . . . . . . . . . . . . . . . . . . . . . . . . . . . . . Machines Disabled . | . . . . . . . . . . . . . . . . . . . . . . . . . . . . . . . . . . . . Actions | -11 -10 -10 -9 -9 -9 -8 -8 -8 -8 -8 -7 -7 -7 -7 -7 -7 -6 -6 -5 -5 -5 -5 -4 -4 -4 -4 -4 -4 -3 -3 -2 -2 -1 -1 -1 --------- Run | Scr Mat Min Mat Min Exi Min Mat Gar Mat Gar Fac Was Fac Gar Fac Gar Fac Gar Fac Gar Fac Gar Fac Ext Cet Arc Hub Gar Res Gar Res Gar Acc Gar Acc Total 18570 | 7 315 240 743 72 297 278 351 811 450 319 380 344 440 807 189 936 326 1186 735 931 542 738 728 910 230 245 148 1111 374 1149 124 497 278 471 868 Wait 2209 | . 10 . 51 2 . 11 15 94 54 55 10 20 18 49 9 58 48 158 138 184 79 56 201 44 114 144 25 210 60 127 1 18 60 59 27 Move 13685 | . 286 233 540 64 293 259 286 607 319 222 325 227 387 666 165 697 235 812 476 609 433 596 455 627 105 87 117 721 262 814 118 393 181 342 726 Hop 1 | . . . . . . . . . . . . . . . . . . 1 . . . . . . . . . . . . . . . . . Pick Up 218 | 1 3 2 15 2 2 2 12 11 4 6 5 6 2 5 . 17 7 11 11 20 2 6 3 4 . 1 1 15 . 14 . 11 5 4 8 Fast Attach 63 | . 2 . 7 1 . . . . 4 . 1 2 . 1 . 1 . 5 6 10 2 1 1 1 2 . . 4 . 6 . 3 1 1 1 Attach 103 | 1 . . 4 . . . 2 4 4 2 2 3 2 1 . 6 2 3 13 8 . 2 4 3 . . 1 7 5 5 2 6 2 2 7 Detach 4 | . 1 . . . . . . . . . . . . . . . . . 2 . . . 1 . . . . . . . . . . . . Swap 241 | . 2 3 25 . . 1 8 23 15 6 6 5 5 19 3 18 4 12 5 13 2 7 4 . 1 1 . 16 2 12 . 7 1 6 9 Drop 198 | 5 . . 19 3 2 2 8 8 12 2 6 11 3 5 1 13 3 15 7 14 5 4 3 1 2 1 1 16 . 3 . 8 6 2 7 Fire 1196 | . 11 . 81 . . 3 4 38 35 16 8 70 12 24 8 33 19 115 33 57 12 51 54 64 6 1 3 112 44 92 2 32 19 54 83 Melee 324 | . . . . . . . 16 26 2 8 17 . 11 20 3 59 8 33 43 16 7 15 2 4 . 10 . 10 1 6 1 5 . 1 . Ram . | . . . . . . . . . . . . . . . . . . . . . . . . . . . . . . . . . . . . Kick 3 | . . 2 1 . . . . . . . . . . . . . . . . . . . . . . . . . . . . . . . . Crush 9 | . . . . . . . . . 1 . . . . . . . . . 1 . . . . 1 . . . . . 3 . . 3 . . Escape Stasis 32 | . . . . . . . . . . 2 . . . . . . . . . . . . . . . . . . . 16 . 14 . . . Rewire 284 | . . . . . . . . . . . . . . 17 . 34 . 21 . . . . . 161 . . . . . 51 . . . . . Trap . | . . . . . . . . . . . . . . . . . . . . . . . . . . . . . . . . . . . . Miscellaneous . | . . . . . . . . . . . . . . . . . . . . . . . . . . . . . . . . . . . . Route ------- -11/Scrapyard -10/Materials (discovered 3 exits: *Mat x2 / [*Min]) -10/Mines (discovered 2 exits: *Mat x2) -9/Materials (discovered 4 exits: *Mat x2 / [*Min] / [*Sto]) -9/Mines (discovered 2 exits: *Exi / [*Zio]) -9/Exiles -8/Mines (discovered 2 exits: *Mat x2) -8/Materials -8/Garrison -8/Materials -8/Garrison -7/Factory (discovered 3 exits: Fac / Low x2) -7/Waste -7/Factory (discovered 2 exits: *Low / Gar) -7/Garrison (discovered 4 exits: *Fac x3 / *Fac) -7/Factory -7/Garrison (discovered 3 exits: *Fac x3) -6/Factory -6/Garrison (discovered 3 exits: *Fac x3) -5/Factory (discovered 2 exits: [*Upp] / Gar) -5/Garrison (discovered 3 exits: *Fac x3) -5/Factory -5/Garrison (discovered 2 exits: *Fac x2) -4/Factory (discovered 4 exits: Upp x2 / *Ext x2) -4/Extension (discovered 2 exits: *Res / *Cet) -4/Cetus -4/Archives -4/Hub_04(d) -4/Garrison (discovered 2 exits: *Res x2) -3/Research -3/Garrison (discovered 3 exits: *Res x3) -2/Research -2/Garrison (discovered 2 exits: *Acc x2) -1/Access -1/Garrison -1/Access To Epsilon Eridani History --------- Turn | Location | Event 6 | -11/Scrapyard | Discovered new exit (range 0) 6 | -11/Scrapyard | Entered Materials 119 | -10/Materials | Discovered new exit (range 16) 302 | -10/Materials | Discovered new exit (range 15) 312 | -10/Materials | Build established: Mutant 350 | -10/Materials | Central database locked down 355 | -10/Materials | Discovered new exit (range 16) 400 | -10/Materials | Entered Mines 438 | -10/Mines | Learned Materials security intel 444 | -10/Mines | Found a damaged Exp. Sensor Array with a note attached 446 | -10/Mines | Found Prototype Device 447 | -10/Mines | Identified Exp. Sensor Array 469 | -10/Mines | Met a Derelict bent on vengeance 571 | -10/Mines | Discovered new exit (range 14) 591 | -10/Mines | Learned location of Zion (-7) 647 | -10/Mines | Discovered new exit (range 5) 689 | -10/Mines | Entered Materials 689 | -9/Materials | Evolved 2 slots: Utility x1, Weapon x1 961 | -9/Materials | Discovered new exit (range 7) 994 | -9/Materials | Build established: Gunner 1348 | -9/Materials | Build established: Scavenger-Gunner 1455 | -9/Materials | Discovered new exit (range 15) 1697 | -9/Materials | Discovered new exit (range 16) 1885 | -9/Materials | Discovered new exit (range 17) 2020 | -9/Materials | Entered Mines 2023 | -9/Mines | Received a Mining Laser from a helpful Derelict 2042 | -9/Mines | Learned Materials garrison access intel 2092 | -9/Mines | A Derelict revealed a hidden shortcut to a safe place 2126 | -9/Mines | A weapon hastily lodged in a ceiling crevice suddenly fell to the ground 2140 | -9/Mines | Deemed a non-threat by the Exiles lab entrance 2142 | -9/Mines | Discovered new exit (range 5) 2148 | -9/Mines | Entered Exiles 2148 | -9/Exiles | Accompanied by 1 ally 2188 | -9/Exiles | Met 8R-AWN 2214 | -9/Exiles | Met EX-HEX 2276 | -9/Exiles | Met EX-DEC 2385 | -9/Exiles | Met EX-BIN 2408 | -9/Exiles | Aligned with FarCom system 2409 | -9/Exiles | Given EX-Vault access code 2446 | -9/Exiles | Opened EX-Vault 2458 | -9/Exiles | Found 0b10 Alert Chip 2497 | -9/Exiles | Warned to stay clear of 0b10 Research branches 2606 | -9/Exiles | Discovered new exit (range 10) 2620 | -9/Exiles | Left Exiles lab with 0b10 Alert Chip 2620 | -9/Exiles | Entered Mines 2920 | -8/Mines | Build established: Scavenger-Skirmisher 3091 | -8/Mines | Discovered new exit (range 12) 3148 | -8/Mines | Discovered new exit (range 6) 3220 | -8/Mines | Entered Materials 3220 | -8/Materials | Evolved 2 slots: Propulsion x1, Utility x1 3221 | -8/Materials | Loaded intel: 1 garrison access location 3980 | -8/Materials | Identified exit to Garrison 3980 | -8/Materials | Entered Garrison 4034 | -8/Garrison | Installed Relay Interface Framework 4244 | -8/Garrison | Triggered checkpoint 4290 | -8/Garrison | Garrison Relay disabled 4540 | -8/Garrison | Triggered checkpoint 4710 | -8/Garrison | Discovered new exit (range 10) 4784 | -8/Garrison | Triggered checkpoint 5232 | -8/Garrison | Build established: Bothacker-Mutant 5502 | -8/Garrison | Entered Materials 5716 | -8/Materials | Repaired Imp. Treads 6022 | -8/Materials | Core integrity fell below 50% 6308 | -8/Materials | Build established: Bothacker-Skirmisher 6367 | -8/Materials | Identified exit to Garrison 6367 | -8/Materials | Entered Garrison 6414 | -8/Garrison | Expanded RIF knowledge: Robot Detection 6458 | -8/Garrison | Triggered checkpoint 6485 | -8/Garrison | Garrison Relay disabled 6618 | -8/Garrison | Build established: Bothacker-Mutant 6648 | -8/Garrison | Triggered checkpoint 6664 | -8/Garrison | Triggered checkpoint 6764 | -8/Garrison | Discovered new exit (range 11) 6802 | -8/Garrison | Triggered checkpoint 6850 | -8/Garrison | Garrison Relay disabled 6898 | -8/Garrison | Entered Factory 6898 | -7/Factory | Evolved 2 slots: Utility x2 7055 | -7/Factory | Identified exit to Lower Caves 7369 | -7/Factory | Discovered new exit (range 141) 7767 | -7/Factory | Sucked down chute 7767 | -7/Factory | Entered Waste 7815 | -7/Waste | Spotted C-40 Crusher 7817 | -7/Waste | Spotted C-40 Crusher 7817 | -7/Waste | Spotted C-40 Crusher 7838 | -7/Waste | Spotted C-40 Crusher 7845 | -7/Waste | Spotted C-40 Crusher 7896 | -7/Waste | Spotted C-40 Crusher 7917 | -7/Waste | Discovered new exit (range 15) 8243 | -7/Waste | Destroyed C-40 Crusher 8312 | -7/Waste | Destroyed C-40 Crusher 8400 | -7/Waste | Destroyed C-40 Crusher 8484 | -7/Waste | Entered Factory 8917 | -7/Factory | Fabricated Imp. Remote Datajack (x1) 9024 | -7/Factory | Discovered exit to Lower Caves (range 15) 9135 | -7/Factory | Allied Derelicts emerged from ambush trap array 9188 | -7/Factory | Identified exit to Garrison 9188 | -7/Factory | Entered Garrison 9188 | -7/Garrison | Accompanied by 2 allies 9227 | -7/Garrison | Expanded RIF knowledge: Autooverride 9268 | -7/Garrison | Triggered checkpoint 9289 | -7/Garrison | Garrison Relay disabled 9426 | -7/Garrison | Triggered checkpoint 9462 | -7/Garrison | Triggered checkpoint 9522 | -7/Garrison | Discovered new exit (range 10) 9775 | -7/Garrison | Discovered new exit (range 12) 9776 | -7/Garrison | Triggered checkpoint 9792 | -7/Garrison | Garrison Relay disabled 9860 | -7/Garrison | Triggered checkpoint 9907 | -7/Garrison | Discovered new exit (range 3) 10091 | -7/Garrison | Discovered new exit (range 10) 10184 | -7/Garrison | Triggered checkpoint 10214 | -7/Garrison | Garrison Relay disabled 10458 | -7/Garrison | Entered Factory 10458 | -7/Factory | Accompanied by 1 ally 10754 | -7/Factory | Identified exit to Garrison 10754 | -7/Factory | Entered Garrison 10754 | -7/Garrison | Accompanied by 3 allies 10830 | -7/Garrison | Triggered checkpoint 10901 | -7/Garrison | Garrison Relay disabled 11034 | -7/Garrison | Triggered checkpoint 11036 | -7/Garrison | Assimilated ARC 4a with formatsys_deep 11054 | -7/Garrison | Triggered checkpoint 11124 | -7/Garrison | Triggered checkpoint 11171 | -7/Garrison | Expanded RIF knowledge: Command Fork 11191 | -7/Garrison | Garrison Relay disabled 11225 | -7/Garrison | Discovered new exit (range 69) 11225 | -7/Garrison | Discovered new exit (range 16) 11225 | -7/Garrison | Discovered new exit (range 69) 11437 | -7/Garrison | Triggered checkpoint 11493 | -7/Garrison | Build established: Botlord-Mutant 11690 | -7/Garrison | Triggered checkpoint 11814 | -7/Garrison | Triggered checkpoint 11888 | -7/Garrison | Garrison Relay disabled 11919 | -7/Garrison | Garrison Relay disabled 11980 | -7/Garrison | Triggered checkpoint 12028 | -7/Garrison | System corruption reached 10% 12225 | -7/Garrison | Entered Factory 12225 | -6/Factory | Accompanied by 1 ally 12225 | -6/Factory | Evolved 2 slots: Propulsion x1, Utility x1 12715 | -6/Factory | Identified exit to Garrison 12715 | -6/Factory | Entered Garrison 12715 | -6/Garrison | Accompanied by 1 ally 12782 | -6/Garrison | Triggered checkpoint 12803 | -6/Garrison | Garrison Relay disabled 13126 | -6/Garrison | Triggered checkpoint 13137 | -6/Garrison | Triggered checkpoint 13420 | -6/Garrison | Discovered new exit (range 10) 13506 | -6/Garrison | Garrison Relay disabled 13512 | -6/Garrison | Phase Generator disabled 13898 | -6/Garrison | Triggered checkpoint 13898 | -6/Garrison | Garrison Relay disabled 14149 | -6/Garrison | Discovered new exit (range 9) 14149 | -6/Garrison | Spotted B-75 Beast 14180 | -6/Garrison | Triggered checkpoint 14260 | -6/Garrison | Spotted B-75 Beast 14271 | -6/Garrison | Rewired B-86 Titan 14273 | -6/Garrison | Spotted B-86 Titan 14352 | -6/Garrison | Triggered checkpoint 14427 | -6/Garrison | Expanded RIF knowledge: Alert ID Control 14443 | -6/Garrison | Discovered new exit (range 3) 14547 | -6/Garrison | Entered Factory 14547 | -5/Factory | Evolved 2 slots: Utility x2 14847 | -5/Factory | First assault squad dispatched 15065 | -5/Factory | Lost 3 parts (1p2u) 15070 | -5/Factory | System corruption reached 10% 15179 | -5/Factory | Garrison activated, responded to threat 15293 | -5/Factory | Discovered new exit (range 8) 15463 | -5/Factory | Lost 4 parts (1n2u1w) 15687 | -5/Factory | Identified exit to Garrison 15687 | -5/Factory | Entered Garrison 15697 | -5/Garrison | Discovered new exit (range 68) 15697 | -5/Garrison | Discovered new exit (range 65) 15697 | -5/Garrison | Discovered new exit (range 31) 15755 | -5/Garrison | Garrison Relay disabled 15778 | -5/Garrison | Triggered checkpoint 15824 | -5/Garrison | Triggered checkpoint 15824 | -5/Garrison | Triggered checkpoint 15974 | -5/Garrison | Triggered checkpoint 16499 | -5/Garrison | Expanded RIF knowledge: Watcher Feeds 16532 | -5/Garrison | Triggered checkpoint 16548 | -5/Garrison | Garrison Relay disabled 16852 | -5/Garrison | Triggered checkpoint 16892 | -5/Garrison | Rescued a captive Derelict 16897 | -5/Garrison | Rescued a captive Derelict 16991 | -5/Garrison | Entered Factory 16991 | -5/Factory | Accompanied by 1 ally 17743 | -5/Factory | Identified exit to Garrison 17743 | -5/Factory | Entered Garrison 17743 | -5/Garrison | Accompanied by 1 ally 17752 | -5/Garrison | Found embedded Infiltrators 17844 | -5/Garrison | Triggered checkpoint 17849 | -5/Garrison | Garrison Relay disabled 17884 | -5/Garrison | Learned Factory security intel 18099 | -5/Garrison | Found Enh. Force Lance 18104 | -5/Garrison | Found Enh. Force Lance 18218 | -5/Garrison | Triggered checkpoint 18350 | -5/Garrison | Garrison Relay disabled 18424 | -5/Garrison | Triggered checkpoint 18476 | -5/Garrison | Discovered new exit (range 10) 18489 | -5/Garrison | Triggered checkpoint 18515 | -5/Garrison | Garrison Relay disabled 18602 | -5/Garrison | Triggered checkpoint 18676 | -5/Garrison | Discovered new exit (range 15) 18717 | -5/Garrison | Expanded RIF knowledge: Patrol Navigation 18739 | -5/Garrison | Found Quantum Capacitor 18813 | -5/Garrison | Entered Factory 18813 | -4/Factory | Accompanied by 3 allies 18813 | -4/Factory | Evolved 2 slots: Utility x2 19061 | -4/Factory | Identified exit to Upper Caves 19061 | -4/Factory | Identified exit to Extension 19198 | -4/Factory | Spotted B-86 Titan 19525 | -4/Factory | Fabricated Enh. Nova Cannon (x1) 19755 | -4/Factory | Entered Extension 20026 | -4/Extension | Rescued a captive Derelict 20056 | -4/Extension | Rescued a captive Derelict 20092 | -4/Extension | Rescued a captive Derelict 20377 | -4/Extension | Spotted B-86 Titan 20381 | -4/Extension | Allies destroyed B-86 Titan 20400 | -4/Extension | Spotted B-86 Titan 20411 | -4/Extension | Allies destroyed B-86 Titan 20498 | -4/Extension | Rescued a captive Derelict 20650 | -4/Extension | Rescued a captive Derelict 20655 | -4/Extension | Rescued a captive Derelict 20657 | -4/Extension | Rescued A7 20683 | -4/Extension | Rescued a captive Derelict 20686 | -4/Extension | Rescued a captive Derelict 20698 | -4/Extension | Rescued a captive Derelict 20712 | -4/Extension | Energy Cycler disabled 20902 | -4/Extension | Discovered new exit (range 10) 20903 | -4/Extension | Discovered new exit (range 6) 20969 | -4/Extension | Entered Cetus 20969 | -4/Cetus | Accompanied by 19 allies (A7) 20974 | -4/Cetus | Acquired a Cetus Manufacturing Module code from A7 21002 | -4/Cetus | Spotted Cetus Guard 21003 | -4/Cetus | Spotted Cetus Guard 21003 | -4/Cetus | Spotted Cetus Guard 21005 | -4/Cetus | Spotted Cetus Guard 21009 | -4/Cetus | Allies destroyed Cetus Guard 21009 | -4/Cetus | Allies destroyed Cetus Guard 21011 | -4/Cetus | Allies destroyed Cetus Guard 21016 | -4/Cetus | Allies destroyed Cetus Guard 21086 | -4/Cetus | Started Cetus Manufacturing Module 21111 | -4/Cetus | Manufactured an Enhanced Grunt 21111 | -4/Cetus | Escorted A7 to Cetus Mainframe 21130 | -4/Cetus | Discovered new exit (range 16) 21136 | -4/Cetus | Manufactured an Enhanced Grunt 21161 | -4/Cetus | Manufactured an Enhanced Grunt 21186 | -4/Cetus | Manufactured an Enhanced Grunt 21211 | -4/Cetus | Manufactured an Enhanced Grunt 21258 | -4/Cetus | Entered Archives 21258 | -4/Archives | Accompanied by 18 allies (A7) 21263 | -4/Archives | Received a hacking code to weaken MAIN.C 21473 | -4/Archives | Discovered new exit (range 14) 22173 | -4/Archives | Entered Hub_04(d) 22173 | -4/Hub_04(d) | Accompanied by 14 allies 22202 | -4/Hub_04(d) | Found Quantum Capacitor 22377 | -4/Hub_04(d) | Identified exit to Garrison 22391 | -4/Hub_04(d) | Entered Garrison 22391 | -4/Garrison | Accompanied by 6 allies 22516 | -4/Garrison | Triggered checkpoint 22526 | -4/Garrison | Garrison Relay disabled 22821 | -4/Garrison | Spotted B-86 Titan 22856 | -4/Garrison | Destroyed B-86 Titan 22866 | -4/Garrison | Triggered checkpoint 23019 | -4/Garrison | Found Prototype Device 23023 | -4/Garrison | Identified Exp. Thermal Shield 23217 | -4/Garrison | Discovered new exit (range 14) 23284 | -4/Garrison | Expanded RIF knowledge: Structural Interface 23362 | -4/Garrison | Garrison Relay disabled 23460 | -4/Garrison | Rescued a captive Derelict 23460 | -4/Garrison | Rescued a captive Derelict 23530 | -4/Garrison | Triggered checkpoint 23563 | -4/Garrison | Crushed by falling debris 23594 | -4/Garrison | Lost 3 parts (2u1w) 23692 | -4/Garrison | Triggered checkpoint 23750 | -4/Garrison | Garrison Relay disabled 23792 | -4/Garrison | Spotted B-86 Titan 23826 | -4/Garrison | Destroyed B-86 Titan 23962 | -4/Garrison | Discovered new exit (range 14) 24007 | -4/Garrison | Entered Research 24007 | -3/Research | Evolved 2 slots: Power x1, Utility x1 24702 | -3/Research | Identified exit to Garrison 24702 | -3/Research | Entered Garrison 24891 | -3/Garrison | Learned Research security intel 24910 | -3/Garrison | Triggered checkpoint 24941 | -3/Garrison | Garrison Relay disabled 25129 | -3/Garrison | Spotted B-86 Titan 25164 | -3/Garrison | Triggered checkpoint 25204 | -3/Garrison | Triggered checkpoint 25208 | -3/Garrison | Destroyed B-86 Titan 25220 | -3/Garrison | Triggered checkpoint 25222 | -3/Garrison | Triggered checkpoint 25322 | -3/Garrison | Found Adv. Powered Armor 25328 | -3/Garrison | Found Adv. Powered Armor 25331 | -3/Garrison | Found Adv. Powered Armor 25334 | -3/Garrison | Found Adv. Powered Armor 25338 | -3/Garrison | Found Adv. Powered Armor 25341 | -3/Garrison | Found Adv. Powered Armor 25344 | -3/Garrison | Found Adv. Powered Armor 25347 | -3/Garrison | Found Adv. Powered Armor 25406 | -3/Garrison | Triggered checkpoint 25413 | -3/Garrison | Discovered new exit (range 13) 26034 | -3/Garrison | Expanded RIF knowledge: Command Fork 26048 | -3/Garrison | Discovered new exit (range 10) 26084 | -3/Garrison | Triggered checkpoint 26126 | -3/Garrison | Triggered checkpoint 26154 | -3/Garrison | Garrison Relay disabled 26463 | -3/Garrison | Garrison Relay disabled 26466 | -3/Garrison | Triggered checkpoint 26682 | -3/Garrison | Discovered new exit (range 12) 26690 | -3/Garrison | Triggered checkpoint 26711 | -3/Garrison | Garrison Relay disabled 26769 | -3/Garrison | Spotted B-75 Beast 26787 | -3/Garrison | Allies destroyed B-75 Beast 26830 | -3/Garrison | Entered Research 26830 | -2/Research | Accompanied by 4 allies 26830 | -2/Research | Evolved 2 slots: Utility x2 27104 | -2/Research | Identified exit to Garrison 27104 | -2/Research | Entered Garrison 27104 | -2/Garrison | Accompanied by 5 allies 27149 | -2/Garrison | Triggered checkpoint 27285 | -2/Garrison | Garrison Relay disabled 27346 | -2/Garrison | Triggered checkpoint 27350 | -2/Garrison | Spotted B-90 Cyclops 27356 | -2/Garrison | Triggered checkpoint 27383 | -2/Garrison | Triggered checkpoint 27392 | -2/Garrison | Allies destroyed B-90 Cyclops 27509 | -2/Garrison | Discovered new exit (range 10) 27558 | -2/Garrison | Expanded RIF knowledge: Crosswire 27582 | -2/Garrison | Triggered checkpoint 27584 | -2/Garrison | Assimilated ARC 9a with formatsys_deep 27620 | -2/Garrison | Garrison Relay disabled 27823 | -2/Garrison | Spotted B-75 Beast 27986 | -2/Garrison | Garrison Relay disabled 27992 | -2/Garrison | Triggered checkpoint 28064 | -2/Garrison | Discovered new exit (range 11) 28119 | -2/Garrison | Entered Access 28119 | -1/Access | Accompanied by 6 allies 28119 | -1/Access | Evolved 2 slots: Propulsion x2 28581 | -1/Access | Spotted B-99 Colossus 28588 | -1/Access | Identified exit to Garrison 28588 | -1/Access | Entered Garrison 28588 | -1/Garrison | Accompanied by 4 allies 28615 | -1/Garrison | Expanded RIF knowledge: Coupler Efficiency 28674 | -1/Garrison | Triggered checkpoint 28675 | -1/Garrison | Spotted B-99 Colossus 28682 | -1/Garrison | Triggered checkpoint 28696 | -1/Garrison | Assimilated Colossus 10a with formatsys_high 28708 | -1/Garrison | Triggered checkpoint 28714 | -1/Garrison | Triggered checkpoint 28824 | -1/Garrison | Triggered checkpoint 28845 | -1/Garrison | Garrison Relay disabled 29098 | -1/Garrison | Expanded RIF knowledge: Command Fork 29114 | -1/Garrison | Triggered checkpoint 29139 | -1/Garrison | Garrison Relay disabled 29212 | -1/Garrison | Discovered new exit (range 13) 29236 | -1/Garrison | Entered Access 29236 | -1/Access | Accompanied by 5 allies 29510 | -1/Access | Assimilated ARC 10a with formatsys_deep 29756 | -1/Access | Spotted B-99 Colossus 29790 | -1/Access | Allies destroyed B-99 Colossus 30157 | -1/Access | P-80 Master assimilated allied Swordsman 10b 30179 | -1/Access | Found Imp. Particle Accelerator 30369 | -1/Access | Energy Cycler disabled 30441 | -1/Access | Discovered new exit (range 5) 30448 | *** | Escaped! Last Messages --------------- 30339_ Acquired 75 matter. 30347_ RIF reveals location of hidden door. 30348_ Jacked Y-72 Warden... 30350_ Chain reaction triggered in Particle Reactor. 30350_ Terminal disabled. 30352_ Y-72 Warden IFF system glitched. 30353_ Y-72 Warden system terminally corrupted. 30353_ Dropped Adv. Powered Armor. 30369_ ALERT: Power surge detected, dispatching additional patrols. 30369_ Energy Cycler explodes. 30372_ K-01 Serf collects debris. 30403_ K-01 Serf destroyed. 30404_ Acquired 16 matter. 30405_ K-01 Serf collects debris. 30407_ Destroyed Wheel. 30409_ K-01 Serf collects debris. 30441_ The Access Shell folds into the floor. 30441_ EXIT=FOUND [Achievement: One Last FU] [Achievement: True Cogmind] Map ----- +----------------------------------------------------+ | ?????????????????????????????????????????????????? | | ?????????????????????????????????????????????????? | | ?????????????????????????????????????????????????? | | ?????????????????????????????????????????????????? | | ?????????????????????????????????????????????????? | | ?????????????????????????????????????????????????? | | ????????????h????????????????????????????????????? | | ?????????????????????????????????????????????????? | | ?????????????????????????????????????????????????? | | ############?####????????????????????????????????? | | """T""" "##???????????????????????????????? | | """ "" " ???????????????????????????????? | | =" ??????????????????????????????? | | [%[ ???????????????????????????????? | | ]]! !! #??BB????BB?????????????######?? | | ]]! " ???BB????BB????????????# #? | | ]!! #?????????????????????????# #? | | #?????????????????????????#] #? | | ! #?????????????????????????# #? | | #####+####+##????????????????????????????# [ #? | | ### #???????????#""""""""""#??????????# !#? | | #???????????# #??????????# #? | | [ + " ?????# #?#######??# [#? | | ### %!# """ ???# #?#! ??# #? | | ??## ## """ ?????# "" #?# #?# #? | | ???# #?? " ??????# "@ #?# [#?# #? | | ???# #?? ?????# #?# #?# #? | | ???# #??? = ?????# x #?# #?# #? | | ??## #????####????# #?# #?# #? | | ??## #???????????## x ### ######/### | | ??## #???????????# ## * # | | ???# #???????????##"" ### # | | ???# #????????????#"" #?# # ####### | | ???# #????????????#"" #?# / #??????? | | #### #????????????#T #?# # #???#### | | #????????????#"" #?# # #?? | | #### !#????????????#"" #?######## ##? | | ???# ##############"" ######### # | | ???# * = # | | ???# =! = + | | ???###########+########################! = # | | ???????????? ??????????????###### ##*!## | | ?????????? #?????????????""""" # [#?? | | ???????? " #?????????????""""" #!|#??##### | | ???????# """ #?????????????""""" +!!######## | | ???????# """#?????????????""""" #% *= | | ???????# " #??????????????"""" + %%% | | ???????# #????????????? #% = | | ???????#! #???????????? ######## ! | | ???????####/######??????????? #??????# | +----------------------------------------------------+ Best States ------------- Heat Dissipation 139 Coolant Potential 80 Energy Generation 45 Energy Capacity 850 Matter Stores 300 Matter Capacity 300 Sight Range 16 Terrain Scan Range 14 Terrain Scan Density 10 ECM Strength 1 Jamming Range 16 Armor Coverage 1200 Resistance: KI 20 Weapon Shielding 33 Weapon Cycling 25 Evasion (%) 55 Targeting Accuracy 8 Target Analysis 6 Recoil Reduction 6 Particle Charging 40 Salvage Targeting 3 Relay Coupler Types 11 Relay Coupler Value 206 Authchip Count 1 Item Schematics ----------------- Huge Storage Unit | -8/Materials | Hacked Robot Schematics ------------------ None Fabricated ------------ Imp. Remote Datajack | x1 | -7/Factory | Preloaded Enh. Nova Cannon | x1 | -4/Factory | Preloaded Alien Tech Used ----------------- None Achievements -------------- One Last FU True Cogmind Challenges ------------ None Game ------ Seed WardroneHardenedAnalyzer Manual? 0 Play Time 04:03:59 Cumulative 656.4 hours Start 2022.08.08 @ 18:23:16 End 2022.08.08 @ 22:42:41 Sessions 1 Manual Loads 0 Difficulty Rogue Special Mode None Game No. 610 Rogue 610 Adventurer 0 Explorer 0 Win Type 0 Total 25 Types 12/4/5/1/1/0/1/1/0 Lore% 91 Gallery% 95 Achievement% 78 Wizard Run 0 Options --------- ASCII 0 Keyboard 0 Movement Mouse Keybinds 1 Fullscreen 2 Font 24/Smallcaps Map View 76x50 Tactical HUD 1 Map Filters NONE Filters NONE Steam 1 RUN: a0dc48e6-05a2-4ef3-91a1-eb80883c705e